Workbook

Sheet Raportowanie
C1: wysyłanie e-maila w tle
B4: wyślij do
B5: wyślij do wiadomości
B6: data
B7: miasto, nr kasy
B8: godziny pracy
B9: ilość biletów sprzedanych
B10: wpływy za sprzedane bilety
B11: ilość biletów zwróconych
B12: kwota zwrotów
B13: Zaznacz poniżej co będzie raportowane
C16: grzegorz.pieprzak@intercity.pl

Sheet Dane do wydruku BDW
B1: grzegorz.pieprzak@intercity.pl | S1: SK | V1: Bankowy Dowód Wpłaty
B2: DrukBDW&Raport_v8.24.02.29
S3: PKP Intercity S.A. Aleje Jerozolimskie 142A, 02-305 Warszawa
B4: wpłacający/a: | S4: Sekcja Handlowa w Krakowie
B5: miejsce i nr kasy: | S5: =IF(D5<>"",D5&", zmiana nr "&D6,"kasa i zmiana") -> kasa i zmiana
B6: nr zmiany: | S6: nr konta: 82 1140 1010 4167 0000 0004 5016 | AJ6: podaj wartość w PLN
B7: wpłata: | S7: ="wpłaca: "&D4 -> wpłaca: | AJ7: 100
B8: liczba banknotów 500 zł | S8: utarg z dnia: | V8: =TODAY() + $AE$8 -> 2024-03-14 | AJ8: =IFERROR(AJ7/AJ12,"") -> 
B9: liczba banknotów 200 zł | S9: ="kwota wpłaty: " -> kwota wpłaty: | V9: =IF(IF(B7="wpłata:",D7,D8*500+D9*200+D10*100+D11*50+D12*20+D13*10)<>0,IF(B7="wpłata:",D7,D8*500+D9*200+D10*100+D11*50+D12*20+D13*10),"") -> 
B10: liczba banknotów 100 zł | S10: słownie: | V10: =ZmienNaSlownie(V9) -> 
B11: liczba banknotów 50 zł | S11: wyświetli słownie kwoty od 1 do 999 999 PLN | AJ11: kurs wymiany Intercity za 1 EUR
B12: liczba banknotów 20 zł
B13: liczba banknotów 10 zł | S13: nr koperty | AJ13: podaj wartość w EUR
B14: Wydrukuje oryginalny z mBanku BDW(2) | AJ14: 3.5
AJ15: =AJ14*AJ12 -> 0
AQ17: =LEFT(D4, SEARCH(" ",D4,1)) ->  | AR17: =RIGHT(D4,LEN(D4)-SEARCH(" ",D4,1)) -> 

Sheet liczydło (hidden)
C1: REZERWA KASOWA | G1: włącz do BFW2 | H1: =20-COUNTIF(H2:H21,"") -> 0 | I1: włącz do BFW1 | K1: =SUM(K2:K64) -> 0 | L1: 0 | M1: 0 | N1: 0 | O1: 0 | P1: 0 | Q1: 0 | R1: 0 | S1: 0 | T1: 0 | U1: 0 | V1: 0 | W1: 0 | X1: 0 | Y1: 0 | Z1: =SUM(Z2:Z64) -> 0
A2: mat | B2: ilosc | C2: nominał | D2: ilość | F2: dołóż
A3: 500 | B3: =IF($D$2="kwota",Tabela3[[#This Row],[ilość]]/Tabela3[[#This Row],[mat]],Tabela3[[#This Row],[ilość]]) -> 0 | C3: 500 zł | D3: 0 | E3: <
A4: 200 | B4: =IF($D$2="kwota",Tabela3[[#This Row],[ilość]]/Tabela3[[#This Row],[mat]],Tabela3[[#This Row],[ilość]]) -> 0 | C4: 200 zł | D4: 0 | E4: <
A5: 100 | B5: =IF($D$2="kwota",Tabela3[[#This Row],[ilość]]/Tabela3[[#This Row],[mat]],Tabela3[[#This Row],[ilość]]) -> 0 | C5: 100 zł | D5: 0 | E5: <
A6: 50 | B6: =IF($D$2="kwota",Tabela3[[#This Row],[ilość]]/Tabela3[[#This Row],[mat]],Tabela3[[#This Row],[ilość]]) -> 0 | C6: 50 zł | D6: 0 | E6: <
A7: 20 | B7: =IF($D$2="kwota",Tabela3[[#This Row],[ilość]]/Tabela3[[#This Row],[mat]],Tabela3[[#This Row],[ilość]]) -> 0 | C7: 20 zł | D7: 0 | E7: <
A8: 10 | B8: =IF($D$2="kwota",Tabela3[[#This Row],[ilość]]/Tabela3[[#This Row],[mat]],Tabela3[[#This Row],[ilość]]) -> 0 | C8: 10 zł | D8: 0 | E8: <
A9: 5 | B9: =IF($D$2="kwota",Tabela3[[#This Row],[ilość]]/Tabela3[[#This Row],[mat]],Tabela3[[#This Row],[ilość]]) -> 0 | C9: 5 zł | D9: 0 | E9: <
A10: 2 | B10: =IF($D$2="kwota",Tabela3[[#This Row],[ilość]]/Tabela3[[#This Row],[mat]],Tabela3[[#This Row],[ilość]]) -> 0 | C10: 2 zł | D10: 0 | E10: <
A11: 1 | B11: =IF($D$2="kwota",Tabela3[[#This Row],[ilość]]/Tabela3[[#This Row],[mat]],Tabela3[[#This Row],[ilość]]) -> 0 | C11: 1 zł | D11: 0 | E11: <
A12: 0.5 | B12: =IF($D$2="kwota",Tabela3[[#This Row],[ilość]]/Tabela3[[#This Row],[mat]],Tabela3[[#This Row],[ilość]]) -> 0 | C12: 50 gr | D12: 0 | E12: <
A13: 0.2 | B13: =IF($D$2="kwota",Tabela3[[#This Row],[ilość]]/Tabela3[[#This Row],[mat]],Tabela3[[#This Row],[ilość]]) -> 0 | C13: 20 gr | D13: 0 | E13: <
A14: 0.1 | B14: =IF($D$2="kwota",Tabela3[[#This Row],[ilość]]/Tabela3[[#This Row],[mat]],Tabela3[[#This Row],[ilość]]) -> 0 | C14: 10 gr | D14: 0 | E14: <
A15: 0.05 | B15: =IF($D$2="kwota",Tabela3[[#This Row],[ilość]]/Tabela3[[#This Row],[mat]],Tabela3[[#This Row],[ilość]]) -> 0 | C15: 5 gr | D15: 0 | E15: <
A16: 0.02 | B16: =IF($D$2="kwota",Tabela3[[#This Row],[ilość]]/Tabela3[[#This Row],[mat]],Tabela3[[#This Row],[ilość]]) -> 0 | C16: 2 gr | D16: 0 | E16: <
A17: 0.01 | B17: =IF($D$2="kwota",Tabela3[[#This Row],[ilość]]/Tabela3[[#This Row],[mat]],Tabela3[[#This Row],[ilość]]) -> 0 | C17: 1 gr | D17: 0 | E17: <
C18: pozostałość | D18: =IF($D$2="kwota",SUM(D3:D17),SUMPRODUCT(Tabela3[mat],Tabela3[ilość])) -> 0 | E18: 0
C19: pozost. rPOS
C20: różnica | D20: =D18-D19 -> 0
C21: przelew | D21: 0 | E21: <
C22: pozost. + przelew | D22: =D21+D18 -> 0 | G22: Przycisk u góry 'usuń i ustaw' czyści wpisy biletów i ustawia selekcję pierwszej komórki, do której będą skanowane numery biletów.
C23: R E S E T
C25: Z A M K N I J
C27: icsite.7m.pl | G27: Z A M K N I J

Sheet Obwoluta (hidden)
G2: =H2 -> Wydział Rozliczeń Międzynarodowych | H2: Wydział Rozliczeń Międzynarodowych
I17: BFW2
I22: =""&'Dane do wydruku BDW'!D5 -> 
I24: ="zmiana: " &'Dane do wydruku BDW'!D6 -> zmiana:
I26: =""&'Dane do wydruku BDW'!D4 -> 
I28: 2024-02-22

Sheet Koperta (hidden)
D9: mBank S.A.
D11: PKP Intercity S.A.
D12: Sekcja Handlowa w Katowicach
D13: Stacja Katowice, kasa nr 26
D14: 84 1140 1010 4167 0000 0052 2026
D15: Zmiana nr 42
D16: 2024-02-22
D17: Kasjer: Pieprzak Grzegorz
D18: Kwota: 1200 zł
A63: SKLEIĆ LUB ZSZYĆ | J63: SKLEIĆ LUB ZSZYĆ

Sheet BDW(4) (hidden)
B1: Bankowy dowód wpłaty | C1: mBank S.A. | G1: Bankowy dowód wpłaty | H1: mBank S.A.
B2: Nazwa i adres właściciela rachunku: | G2: Nazwa i adres właściciela rachunku: | K2: specyfikacja | P2: specyfikacja
B3: PKP Intercity S.A. | G3: =B3 -> PKP Intercity S.A. | K3: sztuk | L3: nominał | M3: wartość | P3: sztuk | Q3: nominał | R3: wartość
B4: Aleje Jerozolimskie 142A, 02-305 Warszawa | G4: =B4 -> Aleje Jerozolimskie 142A, 02-305 Warszawa | K4: =IF($B54="","",$B54) ->  | L4: 500 zł | M4: =IF(K4="","",K4*L4) ->  | P4: =IF(K4="","",K4) ->  | Q4: 500 zł | R4: =IF(P4="","",P4*Q4) -> 
K5: =IF($B55="","",$B55) -> 3 | L5: 200 zł | M5: =IF(K5="","",K5*L5) -> 600 | P5: =IF(K5="","",K5) -> 3 | Q5: 200 zł | R5: =IF(P5="","",P5*Q5) -> 600
B6: Nazwa i adres wpłacającego: | G6: Nazwa i adres wpłacającego: | K6: 6 | L6: 100 zł | M6: 600 | P6: 6 | Q6: 100 zł | R6: 600
B7: Pieprzak Grzegorz | G7: =B7 -> Pieprzak Grzegorz | L7: 50 zł | Q7: 50 zł
L8: 20 zł | Q8: 20 zł
B9: Nr rachunku: | C9: Data wpłaty: | G9: Nr rachunku: | H9: Data wpłaty: | L9: 10 zł | Q9: 10 zł
B10: 84 1140 1010 4167 0000 0052 2026 | C10: 2024-03-14 | G10: =B10 -> 84 1140 1010 4167 0000 0052 2026 | H10: =C10 -> 2024-03-14 | L10: 5 zł | Q10: 5 zł
L11: 2 zł | Q11: 2 zł
B12: Kwota wpłaty: | D12: Waluta: | G12: Kwota wpłaty: | I12: Waluta: | L12: 1 zł | Q12: 1 zł
B13: 1200 | D13: PLN | G13: =B13 -> 1200 | I13: PLN | L13: 50 gr | Q13: 50 gr
L14: 20 gr | Q14: 20 gr
B15: Kwota słownie: | G15: Kwota słownie: | L15: 10 gr | Q15: 10 gr
B16: jeden tysiąc dwieście PLN 0/100 | G16: =B16 -> jeden tysiąc dwieście PLN 0/100 | L16: 5 gr | Q16: 5 gr
L17: 2 gr | Q17: 2 gr
B18: Tytuł wpłaty: | C18: Podpis wpłacającego: | G18: Tytuł wpłaty: | H18: Podpis wpłacającego: | L18: 1 gr | Q18: 1 gr
B19: Wpłata z: Katowice, kasa nr 26 | C19: Pieprzak Grzegorz | G19: =B19 -> Wpłata z: Katowice, kasa nr 26 | H19: =C19 -> Pieprzak Grzegorz
B20: Zmiana nr 42 | G20: =B20 -> Zmiana nr 42 | L20: Kwota przelewu do banku: | M20: =SUM(M4:M18) -> 1200 | Q20: Kwota przelewu do banku: | R20: =SUM(R4:R18) -> 1200
B21: Nr koperty: | G21: Nr koperty:
B22: EMD6388727 | G22: =B22 -> EMD6388727 | M22: specyfikacja | R22: specyfikacja
G26: rezerwa kasowa
B27: Bankowy dowód wpłaty | C27: mBank S.A.
B28: Nazwa i adres właściciela rachunku: | G28: sztuk | H28: nominał | I28: wartość | K28: specyfikacja | L28: 3 | P28: specyfikacja
B29: =B3 -> PKP Intercity S.A. | G29: 0 | H29: 500 zł | I29: =G29*500 -> 0 | K29: sztuk | L29: nominał | M29: wartość | P29: sztuk | Q29: nominał | R29: wartość
B30: =B4 -> Aleje Jerozolimskie 142A, 02-305 Warszawa | G30: 0 | H30: 200 zł | I30: =G30*200 -> 0 | K30: =IF(K4="","",K4) ->  | L30: 500 zł | M30: =IF(K30="","",K30*L30) ->  | P30: =IF(P4="","",P4) ->  | Q30: 500 zł | R30: =IF(P30="","",P30*Q30) -> 
G31: 0 | H31: 100 zł | I31: =G31*100 -> 0 | K31: 3 | L31: 200 zł | M31: =IF(K31="","",K31*L31) -> 600 | P31: 3 | Q31: 200 zł | R31: =IF(P31="","",P31*Q31) -> 600
B32: Nazwa i adres wpłacającego: | G32: 0 | H32: 50 zł | I32: =G32*50 -> 0 | K32: 6 | L32: 100 zł | M32: 600 | P32: 6 | Q32: 100 zł | R32: 600
B33: =B7 -> Pieprzak Grzegorz | G33: 0 | H33: 20 zł | I33: =G33*20 -> 0 | L33: 50 zł | Q33: 50 zł
G34: 0 | H34: 10 zł | I34: =G34*10 -> 0 | L34: 20 zł | Q34: 20 zł
B35: Nr rachunku: | C35: Data wpłaty: | G35: 0 | H35: 5 zł | I35: =G35*5 -> 0 | L35: 10 zł | Q35: 10 zł
B36: =B10 -> 84 1140 1010 4167 0000 0052 2026 | C36: =C10 -> 2024-03-14 | G36: 0 | H36: 2 zł | I36: =G36*2 -> 0 | L36: 5 zł | Q36: 5 zł
G37: 0 | H37: 1 zł | I37: =G37*1 -> 0 | L37: 2 zł | Q37: 2 zł
B38: Kwota wpłaty: | D38: Waluta: | G38: 0 | H38: 50 gr | I38: =G38*0.5 -> 0 | L38: 1 zł | Q38: 1 zł
B39: =B13 -> 1200 | D39: PLN | G39: 0 | H39: 20 gr | I39: =G39*0.2 -> 0 | L39: 50 gr | Q39: 50 gr
G40: 0 | H40: 10 gr | I40: =G40*0.1 -> 0 | L40: 20 gr | Q40: 20 gr
B41: Kwota słownie: | G41: 0 | H41: 5 gr | I41: =G41*0.05 -> 0 | L41: 10 gr | Q41: 10 gr
B42: =B16 -> jeden tysiąc dwieście PLN 0/100 | G42: 0 | H42: 2 gr | I42: =G42*0.02 -> 0 | L42: 5 gr | Q42: 5 gr
G43: 0 | H43: 1 gr | I43: =G43*0.01 -> 0 | L43: 2 gr | Q43: 2 gr
B44: Tytuł wpłaty: | C44: Podpis wpłacającego: | G44: kwota w bilonie: | L44: 1 gr | Q44: 1 gr
B45: =B19 -> Wpłata z: Katowice, kasa nr 26 | C45: =C19 -> Pieprzak Grzegorz | H45: Pozostałość wyliczona: | I45: =SUM(I29:I43) -> 0
B46: =B20 -> Zmiana nr 42 | G46: całkowita kwota przelewu do banku: | H46: Pozostałość kasowa rPOS: | L46: Kwota przelewu do banku: | M46: =SUM(M30:M44) -> 1200 | Q46: Kwota przelewu do banku: | R46: =SUM(R30:R44) -> 1200
B47: Nr koperty: | H47: Różnica PW-PK: | I47: =IF(H47="","",I45-I46) -> 0
B48: =B22 -> EMD6388727 | H48: rezerwa kasowa | M48: specyfikacja | R48: specyfikacja
B52: specyfikacja | G52: specyfikacja
B53: sztuk | C53: nominał | D53: wartość | G53: sztuk | H53: nominał | I53: wartość
C54: 500 zł | D54: =IF(B54="","",B54*C54) ->  | G54: =IF(B54="","",B54) ->  | H54: 500 zł | I54: =IF(G54="","",G54*H54) -> 
B55: 3 | C55: 200 zł | D55: =IF(B55="","",B55*C55) -> 600 | G55: =IF(B55="","",B55) -> 3 | H55: 200 zł | I55: =IF(G55="","",G55*H55) -> 600
B56: 6 | C56: 100 zł | D56: 600 | G56: 6 | H56: 100 zł | I56: 600
C57: 50 zł | H57: 50 zł
C58: 20 zł | H58: 20 zł
C59: 10 zł | H59: 10 zł
C60: 5 zł | H60: 5 zł
C61: 2 zł | H61: 2 zł
C62: 1 zł | H62: 1 zł
C63: 50 gr | H63: 50 gr
C64: 20 gr | H64: 20 gr
C65: 10 gr | H65: 10 gr
C66: 5 gr | H66: 5 gr
C67: 2 gr | H67: 2 gr
C68: 1 gr | H68: 1 gr
C70: Kwota przelewu do banku: | D70: =SUM(D54:D68) -> 1200 | H70: Kwota przelewu do banku: | I70: =SUM(I54:I68) -> 1200
D72: specyfikacja | I72: specyfikacja
B78: specyfikacja | G78: specyfikacja
B79: sztuk | C79: nominał | D79: wartość | G79: sztuk | H79: nominał | I79: wartość
B80: =IF(B54="","",B54) ->  | C80: 500 zł | D80: =IF(B80="","",B80*C80) ->  | G80: =IF(G54="","",G54) ->  | H80: 500 zł | I80: =IF(G80="","",G80*H80) -> 
B81: 3 | C81: 200 zł | D81: =IF(B81="","",B81*C81) -> 600 | G81: 3 | H81: 200 zł | I81: =IF(G81="","",G81*H81) -> 600
B82: 6 | C82: 100 zł | D82: 600 | G82: 6 | H82: 100 zł | I82: 600
C83: 50 zł | H83: 50 zł
C84: 20 zł | H84: 20 zł
C85: 10 zł | H85: 10 zł
C86: 5 zł | H86: 5 zł
C87: 2 zł | H87: 2 zł
C88: 1 zł | H88: 1 zł
C89: 50 gr | H89: 50 gr
C90: 20 gr | H90: 20 gr
C91: 10 gr | H91: 10 gr
C92: 5 gr | H92: 5 gr
C93: 2 gr | H93: 2 gr
C94: 1 gr | H94: 1 gr
C96: Kwota przelewu do banku: | D96: =SUM(D80:D94) -> 1200 | H96: Kwota przelewu do banku: | I96: =SUM(I80:I94) -> 1200
D98: specyfikacja | I98: specyfikacja

Sheet mBank (hidden)
E2: Bankowy dowód wpłaty | F2: mBank S.A.
A3: WPROWADZANIE DANYCH DO BDW | E3: Nazwa i adres właściciela rachunku:
E4: =UPPER('BDW(4)'!B3) -> PKP INTERCITY S.A.
A5: Nr kasy: | B5: Jarosław, kasa nr 04 | E5: =UPPER('BDW(4)'!B4) -> ALEJE JEROZOLIMSKIE 142A, 02-305 WARSZAWA
B6: 08
E7: Nazwa i adres wpłacającego:
A8: Data wpłaty: | B8: 2021-05-10 | E8: ='BDW(4)'!B7 -> Pieprzak Grzegorz
A10: Kwota wpłaty: | B10: 116 | E10: Nr rachunku: | F10: Data wpłaty:
E11: ='BDW(4)'!B10 -> 84 1140 1010 4167 0000 0052 2026 | F11: ='BDW(4)'!C10 -> 2024-03-14
A12: Tytuł wpłaty: | B12: =CONCATENATE("Wpłata z: ",B5) -> Wpłata z: Jarosław, kasa nr 04
E13: Kwota wpłaty: | G13: Waluta:
E14: ='BDW(4)'!B13 -> 1200 | G14: PLN
A15: Wpłacający: | B15: Janina Kowalska
E16: Kwota słownie:
E17: ='BDW(4)'!B16 -> jeden tysiąc dwieście PLN 0/100
A18: Nr koperty: | B18: 987654322
E19: Tytuł wpłaty: | F19: Podpis wpłacającego:
E20: ='BDW(4)'!B45 -> Wpłata z: Katowice, kasa nr 26
E21: ="Zmiana: ………………."&'Dane do wydruku BDW'!D6 -> Zmiana: ……………….
E23: Nr koperty:
E24: ='Dane do wydruku BDW'!V13 -> 0
E27: Bankowy dowód wpłaty | F27: mBank S.A.
E28: Nazwa i adres właściciela rachunku:
E29: =E4 -> PKP INTERCITY S.A.
E30: =E5 -> ALEJE JEROZOLIMSKIE 142A, 02-305 WARSZAWA
E31: Nazwa i adres wpłacającego:
E32: =E8 -> Pieprzak Grzegorz
E34: Nr rachunku: | F34: Data wpłaty:
E35: =E11 -> 84 1140 1010 4167 0000 0052 2026 | F35: =F11 -> 2024-03-14
E37: Kwota wpłaty: | G37: Waluta:
E38: =E14 -> 1200 | G38: =G14 -> PLN
E40: Kwota słownie:
E41: =E17 -> jeden tysiąc dwieście PLN 0/100
E43: Tytuł wpłaty: | F43: Podpis wpłacającego:
E44: =E20 -> Wpłata z: Katowice, kasa nr 26
E45: =E21 -> Zmiana: ……………….
E47: Nr koperty:
E48: =E24 -> 0

Sheet KontaKasowe (hidden)
B1: Witaj | C1: 2024-03-14 | D1: mBank S.A. | E1: PKP Intercity S.A. | F1: Sekcja Handlowa w Katowicach | G1: DrukBDW&Raport_v8.24.02.29 | R1: Wybrano wysłać: statystyka sprzedaży | S1: [PARAM] ; LOKALIZACJA=151 ; LOKALIZACJAMIASTO=Skarżysko Kamienna ;
B2: Do roboty! | D2: =IF(ISNUMBER(SEARCH('Dane do wydruku BDW'!$B$3,E5)),MAX($D$4:$D4)+1,0) -> 1 | E2: Aleje Jerozolimskie 142A, 02-305 Warszawa | K2: Grzegorz Pieprzak
A3: 13/14.03.2024 | B3: =MAX(Tabela2[Kolumna1]) -> 196 | C3: Skarżysko Kamienna, kasa nr 16 | D3: =LEFT(('Dane do wydruku BDW'!B3),5) ->  | E3: =E1&" " &E2 -> PKP Intercity S.A. Aleje Jerozolimskie 142A, 02-305 Warszawa | F3: =_xlfn.IFNA(VLOOKUP(C3,E5:F224,2,FALSE),"") -> 82 1140 1010 4167 0000 0004 5016 | G3: =_xlfn.IFNA(VLOOKUP(C3,E5:G224,3,FALSE),"") -> Skarżysko Kamienna | H3: =_xlfn.IFNA(VLOOKUP(C3,E5:H224,4,FALSE),"") -> K-16 | I3: =_xlfn.IFNA(VLOOKUP(C3,E5:I224,5,FALSE),"") -> 16 | J3: =_xlfn.IFNA(VLOOKUP(C3,E5:J224,6,FALSE),"") -> Sekcja Handlowa w Krakowie | K3: =_xlfn.IFNA(VLOOKUP(C3,E5:K224,7,FALSE),"") -> 08:15 - 20:15 | L3: =_xlfn.IFNA(IF(VLOOKUP(C3,E5:L224,8,FALSE)>0,VLOOKUP(C3,E5:L224,8,FALSE),"brak adresów e-mail w bazie danych"),"") -> brak adresów e-mail w bazie danych | M3: =_xlfn.IFNA(IF(VLOOKUP(C3,E5:M224,9,FALSE)>0,VLOOKUP(C3,E5:M224,9,FALSE),""),"") ->  | N3: =_xlfn.IFNA(IF(VLOOKUP($C$3,$E$5:N224,10,FALSE)>0,VLOOKUP($C$3,$E$5:N224,10,FALSE),"brak danych"),"") -> 151 | O3: =_xlfn.IFNA(IF(VLOOKUP($C$3,$E$5:O224,11,FALSE)>0,VLOOKUP($C$3,$E$5:O224,11,FALSE),"brak danych"),"") -> 135
C4: Wybrane | D4: Kolumna1 | E4: Miasto i kasa | F4: Rachunek Collect | G4: Stacja | H4: Nr kasy | I4: nr kasy(2) | J4: Sekcja | K4: godziny dyżuru | L4: wyślij do | M4: czy2zmiana | N4: FakNr | O4: LP
C5: =_xlfn.IFNA(VLOOKUP(ROWS($C$5:$C5),D5:E224,2,FALSE),"") -> Białystok, kasa nr 02 | D5: =IF(ISNUMBER(SEARCH($D$3,E5)),MAX($D$4:$D4)+1,0) -> 1 | E5: Białystok, kasa nr 02 | F5: 34 1140 1010 4167 0000 0051 4002 | G5: Białystok | H5: =IF(VALUE(I5)<10,"K-"&"0"&I5,"K-"&I5) -> K-02 | I5: 2 | J5: Sekcja | K5: 07:00 - 19:00 | N5: wybierz kasę z listy | O5: 1 | R5: Białystok - kasa konduktorska | S5: 7 | T5: Białystok - kasa konduktorska , kasa nr 07 | U5: 76 1140 1010 4167 0000 0051 4507
C6: =_xlfn.IFNA(VLOOKUP(ROWS($C$5:$C6),D6:E225,2,FALSE),"") -> Białystok, kasa nr 03 | D6: =IF(ISNUMBER(SEARCH($D$3,E6)),MAX($D$4:$D5)+1,0) -> 2 | E6: Białystok, kasa nr 03 | F6: 07 1140 1010 4167 0000 0051 4003 | G6: Białystok | H6: =IF(VALUE(I6)<10,"K-"&"0"&I6,"K-"&I6) -> K-03 | I6: 3 | J6: Sekcja | K6: 07:00 - 19:00 | N6: wybierz kasę z listy | O6: 2 | R6: Białystok | S6: 2 | T6: Białystok, kasa nr 02 | U6: 34 1140 1010 4167 0000 0051 4002
C7: =_xlfn.IFNA(VLOOKUP(ROWS($C$5:$C7),D7:E226,2,FALSE),"") -> Białystok, kasa nr 04 | D7: =IF(ISNUMBER(SEARCH($D$3,E7)),MAX($D$4:$D6)+1,0) -> 3 | E7: Białystok, kasa nr 04 | F7: 77 1140 1010 4167 0000 0051 4004 | G7: Białystok | H7: =IF(VALUE(I7)<10,"K-"&"0"&I7,"K-"&I7) -> K-04 | I7: 4 | J7: Sekcja | K7: 07:00 - 19:00 | N7: wybierz kasę z listy | O7: 3 | R7: Białystok | S7: 3 | T7: Białystok, kasa nr 03 | U7: 07 1140 1010 4167 0000 0051 4003
C8: =_xlfn.IFNA(VLOOKUP(ROWS($C$5:$C8),D8:E227,2,FALSE),"") -> Białystok, kasa nr 06 | D8: =IF(ISNUMBER(SEARCH($D$3,E8)),MAX($D$4:$D7)+1,0) -> 4 | E8: Białystok, kasa nr 06 | F8: 23 1140 1010 4167 0000 0051 4006 | G8: Białystok | H8: K-06 | I8: 6 | J8: Sekcja | K8: 07:00 - 19:00 | N8: wybierz kasę z listy | O8: 4 | R8: Białystok | S8: 4 | T8: Białystok, kasa nr 04 | U8: 77 1140 1010 4167 0000 0051 4004
C9: =_xlfn.IFNA(VLOOKUP(ROWS($C$5:$C9),D9:E228,2,FALSE),"") -> Białystok, kasa nr 62 | D9: =IF(ISNUMBER(SEARCH($D$3,E9)),MAX($D$4:$D8)+1,0) -> 5 | E9: Białystok, kasa nr 62 | F9: 63 1140 1010 4167 0000 0051 4062 | G9: Białystok | H9: K-62 | I9: 62 | J9: Sekcja | K9: 07:00 - 19:00 | N9: wybierz kasę z listy | O9: 5 | R9: Białystok | S9: 6 | T9: Białystok, kasa nr 06 | U9: 23 1140 1010 4167 0000 0051 4006
C10: =_xlfn.IFNA(VLOOKUP(ROWS($C$5:$C10),D10:E229,2,FALSE),"") -> Białystok, kasa nr 63 | D10: =IF(ISNUMBER(SEARCH($D$3,E10)),MAX($D$4:$D9)+1,0) -> 6 | E10: Białystok, kasa nr 63 | F10: 36 1140 1010 4167 0000 0051 4063 | G10: Białystok | H10: K-63 | I10: 63 | J10: Sekcja | K10: 07:00 - 19:00 | N10: wybierz kasę z listy | O10: 6 | R10: Białystok | S10: 62 | T10: Białystok, kasa nr 62 | U10: 63 1140 1010 4167 0000 0051 4062
C11: =_xlfn.IFNA(VLOOKUP(ROWS($C$5:$C11),D11:E230,2,FALSE),"") -> Bielsko - Biała, kasa nr 32 | D11: =IF(ISNUMBER(SEARCH($D$3,E11)),MAX($D$4:$D10)+1,0) -> 7 | E11: Bielsko - Biała, kasa nr 32 | F11: 19 1140 1010 4167 0000 0052 2032 | G11: Bielsko Biała | H11: K-32 | I11: 32 | J11: Sekcja Handlowa w Katowicach | K11: 06:00 - 18:00 | L11: olga.glab@intercity.pl;anna.jablonska@intercity.pl;zdzislawa.rosochacka@intercity.pl; | N11: 7 | O11: 7 | R11: Białystok | S11: 63 | T11: Białystok, kasa nr 63 | U11: 36 1140 1010 4167 0000 0051 4063
C12: =_xlfn.IFNA(VLOOKUP(ROWS($C$5:$C12),D12:E231,2,FALSE),"") -> Bielsko - Biała, kasa nr 34 | D12: =IF(ISNUMBER(SEARCH($D$3,E12)),MAX($D$4:$D11)+1,0) -> 8 | E12: Bielsko - Biała, kasa nr 34 | F12: 62 1140 1010 4167 0000 0052 2034 | G12: Bielsko Biała | H12: K-34 | I12: 34 | J12: Sekcja Handlowa w Katowicach | K12: 10:00 - 22:00 | L12: olga.glab@intercity.pl;anna.jablonska@intercity.pl;zdzislawa.rosochacka@intercity.pl; | N12: 8 | O12: 8 | R12: Bielsko - Biała | S12: 32 | T12: Bielsko - Biała, kasa nr 32 | U12: 19 1140 1010 4167 0000 0052 2032
C13: =_xlfn.IFNA(VLOOKUP(ROWS($C$5:$C13),D13:E232,2,FALSE),"") -> Bielsko - Biała, kasa nr 53 | D13: =IF(ISNUMBER(SEARCH($D$3,E13)),MAX($D$4:$D12)+1,0) -> 9 | E13: Bielsko - Biała, kasa nr 53 | F13: 34 1140 1010 4167 0000 0052 2053 | G13: Bielsko Biała | H13: K-53 | I13: 53 | J13: Sekcja Handlowa w Katowicach | K13: 07:00 - 19:00 | L13: olga.glab@intercity.pl;anna.jablonska@intercity.pl;zdzislawa.rosochacka@intercity.pl; | N13: 9 | O13: 9 | R13: Bielsko - Biała | S13: 34 | T13: Bielsko - Biała, kasa nr 34 | U13: 62 1140 1010 4167 0000 0052 2034
C14: =_xlfn.IFNA(VLOOKUP(ROWS($C$5:$C14),D14:E233,2,FALSE),"") -> Bochnia, kasa nr 27 | D14: =IF(ISNUMBER(SEARCH($D$3,E14)),MAX($D$4:$D13)+1,0) -> 10 | E14: Bochnia, kasa nr 27 | F14: 91 1140 1010 4167 0000 0052 1027 | G14: Bochnia | H14: K-27 | I14: 27 | J14: Sekcja Handlowa w Krakowie | K14: 07:00 - 19:00 | N14: wybierz kasę z listy | O14: 10 | R14: Bielsko - Biała | S14: 53 | T14: Bielsko - Biała, kasa nr 53 | U14: 34 1140 1010 4167 0000 0052 2053
C15: =_xlfn.IFNA(VLOOKUP(ROWS($C$5:$C15),D15:E234,2,FALSE),"") -> Brzeg, kasa nr 24 | D15: =IF(ISNUMBER(SEARCH($D$3,E15)),MAX($D$4:$D14)+1,0) -> 11 | E15: Brzeg, kasa nr 24 | F15: 89 1140 1010 4167 0000 0053 2024 | G15: Brzeg | H15: K-24 | I15: 24 | J15: Sekcja | K15: 07:00 - 19:00 | N15: wybierz kasę z listy | O15: 11 | R15: Bochnia | S15: 27 | T15: Bochnia, kasa nr 27 | U15: 91 1140 1010 4167 0000 0052 1027
C16: =_xlfn.IFNA(VLOOKUP(ROWS($C$5:$C16),D16:E235,2,FALSE),"") -> Bydgoszcz Główna, kasa nr 01 | D16: =IF(ISNUMBER(SEARCH($D$3,E16)),MAX($D$4:$D15)+1,0) -> 12 | E16: Bydgoszcz Główna, kasa nr 01 | F16: 45 1140 1010 4167 0000 0054 3001 | G16: Bydgoszcz Główna | H16: K-01 | I16: 1 | J16: Sekcja | K16: 07:00 - 19:00 | N16: wybierz kasę z listy | O16: 12 | R16: Brzeg | S16: 24 | T16: Brzeg, kasa nr 24 | U16: 89 1140 1010 4167 0000 0053 2024
C17: =_xlfn.IFNA(VLOOKUP(ROWS($C$5:$C17),D17:E236,2,FALSE),"") -> Bydgoszcz Główna, kasa nr 05 | D17: =IF(ISNUMBER(SEARCH($D$3,E17)),MAX($D$4:$D16)+1,0) -> 13 | E17: Bydgoszcz Główna, kasa nr 05 | F17: 34 1140 1010 4167 0000 0054 3005 | G17: Bydgoszcz Główna | H17: K-05 | I17: 5 | J17: Sekcja | K17: 07:00 - 19:00 | N17: wybierz kasę z listy | O17: 13 | R17: Bydgoszcz Główna - kasa konduktorska | S17: 3 | T17: Bydgoszcz Główna - kasa konduktorska, kasa nr 03 | U17: 71 1140 1010 4167 0000 0054 3503
C18: =_xlfn.IFNA(VLOOKUP(ROWS($C$5:$C18),D18:E237,2,FALSE),"") -> Bydgoszcz Główna, kasa nr 06 | D18: =IF(ISNUMBER(SEARCH($D$3,E18)),MAX($D$4:$D17)+1,0) -> 14 | E18: Bydgoszcz Główna, kasa nr 06 | F18: 07 1140 1010 4167 0000 0054 3006 | G18: Bydgoszcz Główna | H18: K-06 | I18: 6 | J18: Sekcja | K18: 07:00 - 19:00 | N18: wybierz kasę z listy | O18: 14 | R18: Bydgoszcz Główna | S18: 1 | T18: Bydgoszcz Główna, kasa nr 01 | U18: 45 1140 1010 4167 0000 0054 3001
C19: =_xlfn.IFNA(VLOOKUP(ROWS($C$5:$C19),D19:E238,2,FALSE),"") -> Bydgoszcz Główna, kasa nr 10 | D19: =IF(ISNUMBER(SEARCH($D$3,E19)),MAX($D$4:$D18)+1,0) -> 15 | E19: Bydgoszcz Główna, kasa nr 10 | F19: 93 1140 1010 4167 0000 0054 3010 | G19: Bydgoszcz Główna | H19: K-10 | I19: 10 | J19: Sekcja | K19: 07:00 - 19:00 | N19: wybierz kasę z listy | O19: 15 | R19: Bydgoszcz Główna | S19: 5 | T19: Bydgoszcz Główna, kasa nr 05 | U19: 34 1140 1010 4167 0000 0054 3005
C20: =_xlfn.IFNA(VLOOKUP(ROWS($C$5:$C20),D20:E239,2,FALSE),"") -> Choszczno, kasa nr 24 | D20: =IF(ISNUMBER(SEARCH($D$3,E20)),MAX($D$4:$D19)+1,0) -> 16 | E20: Choszczno, kasa nr 24 | F20: 40 1140 1010 4167 0000 0054 2024 | G20: Choszczno | H20: K-24 | I20: 24 | J20: Sekcja | K20: 07:00 - 19:00 | N20: wybierz kasę z listy | O20: 16 | R20: Bydgoszcz Główna | S20: 6 | T20: Bydgoszcz Główna, kasa nr 06 | U20: 07 1140 1010 4167 0000 0054 3006
C21: =_xlfn.IFNA(VLOOKUP(ROWS($C$5:$C21),D21:E240,2,FALSE),"") -> Czechowice Dziedzice, kasa nr 35 | D21: =IF(ISNUMBER(SEARCH($D$3,E21)),MAX($D$4:$D20)+1,0) -> 17 | E21: Czechowice Dziedzice, kasa nr 35 | F21: 54 1140 1010 4167 0000 0004 5035 | G21: Czechowice Dziedzice | H21: K-35 | I21: 35 | J21: Sekcja Handlowa w Katowicach | K21: 07:00 - 19:00 | L21: olga.glab@intercity.pl;anna.jablonska@intercity.pl;zdzislawa.rosochacka@intercity.pl; | N21: wybierz kasę z listy | O21: 17 | R21: Bydgoszcz Główna | S21: 10 | T21: Bydgoszcz Główna, kasa nr 10 | U21: 93 1140 1010 4167 0000 0054 3010
C22: =_xlfn.IFNA(VLOOKUP(ROWS($C$5:$C22),D22:E241,2,FALSE),"") -> Częstochowa Stradom, kasa nr 15 | D22: =IF(ISNUMBER(SEARCH($D$3,E22)),MAX($D$4:$D21)+1,0) -> 18 | E22: Częstochowa Stradom, kasa nr 15 | F22: 12 1140 1010 4167 0000 0004 5015 | G22: Częstochowa Stradom | H22: K-15 | I22: 15 | J22: Sekcja Handlowa w Katowicach | K22: 05:30 - 13:30 | L22: olga.glab@intercity.pl;anna.jablonska@intercity.pl;zdzislawa.rosochacka@intercity.pl; | M22: 13:00 - 21:00 | N22: 19 | O22: 18 | R22: Bytom | S22: 42 | T22: Bytom, kasa nr 42 | U22: 40 1140 1010 4167 0000 0052 2042
C23: =_xlfn.IFNA(VLOOKUP(ROWS($C$5:$C23),D23:E242,2,FALSE),"") -> Częstochowa, kasa nr 39 | D23: =IF(ISNUMBER(SEARCH($D$3,E23)),MAX($D$4:$D22)+1,0) -> 19 | E23: Częstochowa, kasa nr 39 | F23: 24 1140 1010 4167 0000 0052 2039 | G23: Częstochowa | H23: K-39 | I23: 39 | J23: Sekcja Handlowa w Katowicach | K23: 07:00 - 19:00 | L23: olga.glab@intercity.pl;anna.jablonska@intercity.pl;zdzislawa.rosochacka@intercity.pl; | N23: 16 | O23: 19 | R23: Choszczno | S23: 24 | T23: Choszczno, kasa nr 24 | U23: 40 1140 1010 4167 0000 0054 2024
C24: =_xlfn.IFNA(VLOOKUP(ROWS($C$5:$C24),D24:E243,2,FALSE),"") -> Częstochowa, kasa nr 40 | D24: =IF(ISNUMBER(SEARCH($D$3,E24)),MAX($D$4:$D23)+1,0) -> 20 | E24: Częstochowa, kasa nr 40 | F24: 94 1140 1010 4167 0000 0052 2040 | G24: Częstochowa | H24: K-40 | I24: 40 | J24: Sekcja Handlowa w Katowicach | K24: 09:30 - 21:30 | L24: olga.glab@intercity.pl;anna.jablonska@intercity.pl;zdzislawa.rosochacka@intercity.pl; | N24: 18 | O24: 20 | R24: Czechowice Dziedzice | S24: 35 | T24: Czechowice Dziedzice, kasa nr 35 | U24: 54 1140 1010 4167 0000 0004 5035
C25: =_xlfn.IFNA(VLOOKUP(ROWS($C$5:$C25),D25:E244,2,FALSE),"") -> Częstochowa, kasa nr 54 | D25: =IF(ISNUMBER(SEARCH($D$3,E25)),MAX($D$4:$D24)+1,0) -> 21 | E25: Częstochowa, kasa nr 54 | F25: 07 1140 1010 4167 0000 0052 2054 | G25: Częstochowa | H25: K-54 | I25: 54 | J25: Sekcja Handlowa w Katowicach | K25: 06:10 - 14:10 | L25: olga.glab@intercity.pl;anna.jablonska@intercity.pl;zdzislawa.rosochacka@intercity.pl; | M25: 13:30 - 21:30 | N25: 17 | O25: 21 | R25: Częstochowa - kasa konduktorska | S25: 04 | T25: Częstochowa - kasa konduktorska, kasa nr 04 | U25: 79 1140 1010 4167 0000 0052 2504
C26: =_xlfn.IFNA(VLOOKUP(ROWS($C$5:$C26),D26:E245,2,FALSE),"") -> Dębica, kasa nr 07 | D26: =IF(ISNUMBER(SEARCH($D$3,E26)),MAX($D$4:$D25)+1,0) -> 22 | E26: Dębica, kasa nr 07 | F26: 78 1140 1010 4167 0000 0052 3007 | G26: Dębica | H26: K-07 | I26: 7 | J26: Sekcja Handlowa w Przemyślu | K26: 06:00 - 14:00 | L26: Malgorzata.Brzezawska@intercity.pl | N26: 20 | O26: 22 | R26: Częstochowa Stradom | S26: 15 | T26: Częstochowa Stradom, kasa nr 15 | U26: 12 1140 1010 4167 0000 0004 5015
C27: =_xlfn.IFNA(VLOOKUP(ROWS($C$5:$C27),D27:E246,2,FALSE),"") -> Elbląg, kasa nr 10 | D27: =IF(ISNUMBER(SEARCH($D$3,E27)),MAX($D$4:$D26)+1,0) -> 23 | E27: Elbląg, kasa nr 10 | F27: 59 1140 1010 4167 0000 0054 4010 | G27: Elbląg | H27: K-10 | I27: 10 | J27: Sekcja | K27: 07:00 - 19:00 | N27: wybierz kasę z listy | O27: 23 | R27: Częstochowa | S27: 39 | T27: Częstochowa, kasa nr 39 | U27: 24 1140 1010 4167 0000 0052 2039
C28: =_xlfn.IFNA(VLOOKUP(ROWS($C$5:$C28),D28:E247,2,FALSE),"") -> Elbląg, kasa nr 11 | D28: =IF(ISNUMBER(SEARCH($D$3,E28)),MAX($D$4:$D27)+1,0) -> 24 | E28: Elbląg, kasa nr 11 | F28: 32 1140 1010 4167 0000 0054 4011 | G28: Elbląg | H28: K-11 | I28: 11 | J28: Sekcja | K28: 07:00 - 19:00 | N28: wybierz kasę z listy | O28: 24 | R28: Częstochowa | S28: 40 | T28: Częstochowa, kasa nr 40 | U28: 94 1140 1010 4167 0000 0052 2040
C29: =_xlfn.IFNA(VLOOKUP(ROWS($C$5:$C29),D29:E248,2,FALSE),"") -> Ełk, kasa nr 01 | D29: =IF(ISNUMBER(SEARCH($D$3,E29)),MAX($D$4:$D28)+1,0) -> 25 | E29: Ełk, kasa nr 01 | F29: 02 1140 1010 4167 0000 0004 5001 | G29: Ełk | H29: K-01 | I29: 1 | J29: Sekcja | K29: 07:00 - 19:00 | N29: wybierz kasę z listy | O29: 25 | R29: Częstochowa | S29: 54 | T29: Częstochowa, kasa nr 54 | U29: 07 1140 1010 4167 0000 0052 2054
C30: =_xlfn.IFNA(VLOOKUP(ROWS($C$5:$C30),D30:E252,2,FALSE),"") -> Gdańsk Główny, kasa nr 04 | D30: =IF(ISNUMBER(SEARCH($D$3,E30)),MAX($D$4:$D29)+1,0) -> 26 | E30: Gdańsk Główny, kasa nr 04 | F30: 32 1140 1010 4167 0000 0054 1004 | G30: Gdańsk Główny | H30: K-04 | I30: 4 | J30: Sekcja | K30: 07:00 - 19:00 | N30: wybierz kasę z listy | O30: 29 | R30: Ełk | S30: 01 | T30: Ełk, kasa nr 01 | U30: 02 1140 1010 4167 0000 0004 5001
C31: =_xlfn.IFNA(VLOOKUP(ROWS($C$5:$C31),D31:E253,2,FALSE),"") -> Gdańsk Główny, kasa nr 06 | D31: =IF(ISNUMBER(SEARCH($D$3,E31)),MAX($D$4:$D30)+1,0) -> 27 | E31: Gdańsk Główny, kasa nr 06 | F31: 75 1140 1010 4167 0000 0054 1006 | G31: Gdańsk Główny | H31: K-06 | I31: 6 | J31: Sekcja | K31: 07:00 - 19:00 | N31: wybierz kasę z listy | O31: 30 | R31: Gdańsk Główny - Centrum Obsługi Klienta | S31: COK 01 | T31: Gdańsk Główny - Centrum Obsługi Klienta, kasa nr COK 01 | U31: 16 1140 1010 4167 0000 0054 1001
C32: =_xlfn.IFNA(VLOOKUP(ROWS($C$5:$C32),D32:E254,2,FALSE),"") -> Gdańsk Główny, kasa nr 09 | D32: =IF(ISNUMBER(SEARCH($D$3,E32)),MAX($D$4:$D31)+1,0) -> 28 | E32: Gdańsk Główny, kasa nr 09 | F32: 91 1140 1010 4167 0000 0054 1009 | G32: Gdańsk Główny | H32: K-09 | I32: 9 | J32: Sekcja | K32: 07:00 - 19:00 | N32: wybierz kasę z listy | O32: 31 | R32: Gdańsk Główny - Centrum Obsługi Klienta | S32: COK 13 | T32: Gdańsk Główny - Centrum Obsługi Klienta, kasa nr COK 13 | U32: 80 1140 1010 4167 0000 0054 1013
C33: =_xlfn.IFNA(VLOOKUP(ROWS($C$5:$C33),D33:E255,2,FALSE),"") -> Gdańsk Główny, kasa nr 10 | D33: =IF(ISNUMBER(SEARCH($D$3,E33)),MAX($D$4:$D32)+1,0) -> 29 | E33: Gdańsk Główny, kasa nr 10 | F33: 64 1140 1010 4167 0000 0054 1010 | G33: Gdańsk Główny | H33: K-10 | I33: 10 | J33: Sekcja | K33: 07:00 - 19:00 | N33: wybierz kasę z listy | O33: 32 | R33: Gdańsk Główny - Centrum Obsługi Klienta | S33: COK 17 | T33: Gdańsk Główny - Centrum Obsługi Klienta, kasa nr COK 17 | U33: 69 1140 1010 4167 0000 0054 1017
C34: =_xlfn.IFNA(VLOOKUP(ROWS($C$5:$C34),D34:E256,2,FALSE),"") -> Gdańsk Główny, kasa nr 16 | D34: =IF(ISNUMBER(SEARCH($D$3,E34)),MAX($D$4:$D33)+1,0) -> 30 | E34: Gdańsk Główny, kasa nr 16 | F34: 96 1140 1010 4167 0000 0054 1016 | G34: Gdańsk Główny | H34: K-16 | I34: 16 | J34: Sekcja | K34: 07:00 - 19:00 | N34: wybierz kasę z listy | O34: 33 | R34: Gdańsk Główny | S34: 4 | T34: Gdańsk Główny, kasa nr 04 | U34: 32 1140 1010 4167 0000 0054 1004
C35: =_xlfn.IFNA(VLOOKUP(ROWS($C$5:$C35),D35:E257,2,FALSE),"") -> Gdańsk Główny, kasa nr 31 | D35: =IF(ISNUMBER(SEARCH($D$3,E35)),MAX($D$4:$D34)+1,0) -> 31 | E35: Gdańsk Główny, kasa nr 31 | F35: 79 1140 1010 4167 0000 0054 1031 | G35: Gdańsk Główny | H35: K-31 | I35: 31 | J35: Sekcja | K35: 07:00 - 19:00 | N35: wybierz kasę z listy | O35: 34 | R35: Gdańsk Główny | S35: 6 | T35: Gdańsk Główny, kasa nr 06 | U35: 75 1140 1010 4167 0000 0054 1006
C36: =_xlfn.IFNA(VLOOKUP(ROWS($C$5:$C36),D36:E258,2,FALSE),"") -> Gdańsk Oliwa, kasa nr 29 | D36: =IF(ISNUMBER(SEARCH($D$3,E36)),MAX($D$4:$D35)+1,0) -> 32 | E36: Gdańsk Oliwa, kasa nr 29 | F36: 31 1140 1010 4167 0000 0054 4029 | G36: Gdańsk Oliwa | H36: K-29 | I36: 29 | J36: Sekcja | K36: 07:00 - 19:00 | N36: wybierz kasę z listy | O36: 35 | R36: Gdańsk Główny | S36: 9 | T36: Gdańsk Główny, kasa nr 09 | U36: 91 1140 1010 4167 0000 0054 1009
C37: =_xlfn.IFNA(VLOOKUP(ROWS($C$5:$C37),D37:E259,2,FALSE),"") -> Gdańsk Wrzeszcz, kasa nr 24 | D37: =IF(ISNUMBER(SEARCH($D$3,E37)),MAX($D$4:$D36)+1,0) -> 33 | E37: Gdańsk Wrzeszcz, kasa nr 24 | F37: 98 1140 1010 4167 0000 0054 6024 | G37: Gdańsk Wrzeszcz | H37: K-24 | I37: 24 | J37: Sekcja | K37: 07:00 - 19:00 | N37: wybierz kasę z listy | O37: 36 | R37: Gdańsk Główny | S37: 10 | T37: Gdańsk Główny, kasa nr 10 | U37: 64 1140 1010 4167 0000 0054 1010
C38: =_xlfn.IFNA(VLOOKUP(ROWS($C$5:$C38),D38:E260,2,FALSE),"") -> Gdynia Gł, kasa nr 02 | D38: =IF(ISNUMBER(SEARCH($D$3,E38)),MAX($D$4:$D37)+1,0) -> 34 | E38: Gdynia Gł, kasa nr 02 | F38: 86 1140 1010 4167 0000 0054 1002 | G38: Gdynia Gł | H38: K-02 | I38: 2 | J38: Sekcja | K38: 07:00 - 19:00 | N38: wybierz kasę z listy | O38: 37 | R38: Gdańsk Główny | S38: 16 | T38: Gdańsk Główny, kasa nr 16 | U38: 96 1140 1010 4167 0000 0054 1016
C39: =_xlfn.IFNA(VLOOKUP(ROWS($C$5:$C39),D39:E261,2,FALSE),"") -> Gdynia Gł, kasa nr 07 | D39: =IF(ISNUMBER(SEARCH($D$3,E39)),MAX($D$4:$D38)+1,0) -> 35 | E39: Gdynia Gł, kasa nr 07 | F39: 48 1140 1010 4167 0000 0054 1007 | G39: Gdynia Gł | H39: K-07 | I39: 7 | J39: Sekcja | K39: 07:00 - 19:00 | N39: wybierz kasę z listy | O39: 38 | R39: Gdańsk Główny | S39: 31 | T39: Gdańsk Główny, kasa nr 31 | U39: 79 1140 1010 4167 0000 0054 1031
C40: =_xlfn.IFNA(VLOOKUP(ROWS($C$5:$C40),D40:E262,2,FALSE),"") -> Gdynia Gł, kasa nr 08 | D40: =IF(ISNUMBER(SEARCH($D$3,E40)),MAX($D$4:$D39)+1,0) -> 36 | E40: Gdynia Gł, kasa nr 08 | F40: 21 1140 1010 4167 0000 0054 1008 | G40: Gdynia Gł | H40: K-08 | I40: 8 | J40: Sekcja | K40: 07:00 - 19:00 | N40: wybierz kasę z listy | O40: 39 | R40: Gdańsk Oliwa | S40: 29 | T40: Gdańsk Oliwa, kasa nr 29 | U40: 31 1140 1010 4167 0000 0054 4029
C41: =_xlfn.IFNA(VLOOKUP(ROWS($C$5:$C41),D41:E263,2,FALSE),"") -> Gdynia Gł, kasa nr 19 | D41: =IF(ISNUMBER(SEARCH($D$3,E41)),MAX($D$4:$D40)+1,0) -> 37 | E41: Gdynia Gł, kasa nr 19 | F41: 15 1140 1010 4167 0000 0054 1019 | G41: Gdynia Gł | H41: K-19 | I41: 19 | J41: Sekcja | K41: 07:00 - 19:00 | N41: wybierz kasę z listy | O41: 40 | R41: Gdańsk Wrzeszcz | S41: 24 | T41: Gdańsk Wrzeszcz, kasa nr 24 | U41: 98 1140 1010 4167 0000 0054 6024
C42: =_xlfn.IFNA(VLOOKUP(ROWS($C$5:$C42),D42:E264,2,FALSE),"") -> Gdynia Gł, kasa nr 20 | D42: =IF(ISNUMBER(SEARCH($D$3,E42)),MAX($D$4:$D41)+1,0) -> 38 | E42: Gdynia Gł, kasa nr 20 | F42: 85 1140 1010 4167 0000 0054 1020 | G42: Gdynia Gł | H42: K-20 | I42: 20 | J42: Sekcja | K42: 07:00 - 19:00 | N42: wybierz kasę z listy | O42: 41 | R42: Gdynia Gł | S42: 01 | T42: Gdynia Gł, kasa nr 01 | U42: 42 1140 1010 4167 0000 0054 1503
C43: =_xlfn.IFNA(VLOOKUP(ROWS($C$5:$C43),D43:E265,2,FALSE),"") -> Gdynia Gł, kasa nr 25 | D43: =IF(ISNUMBER(SEARCH($D$3,E43)),MAX($D$4:$D42)+1,0) -> 39 | E43: Gdynia Gł, kasa nr 25 | F43: 47 1140 1010 4167 0000 0054 1025 | G43: Gdynia Gł | H43: K-25 | I43: 25 | J43: Sekcja | K43: 07:00 - 19:00 | N43: wybierz kasę z listy | O43: 42 | R43: Gdynia Gł | S43: 2 | T43: Gdynia Gł, kasa nr 02 | U43: 86 1140 1010 4167 0000 0054 1002
C44: =_xlfn.IFNA(VLOOKUP(ROWS($C$5:$C44),D44:E266,2,FALSE),"") -> Gdynia Gł, kasa nr 41 | D44: =IF(ISNUMBER(SEARCH($D$3,E44)),MAX($D$4:$D43)+1,0) -> 40 | E44: Gdynia Gł, kasa nr 41 | F44: 23 1140 1010 4167 0000 0004 4041 | G44: Gdynia Gł | H44: K-41 | I44: 41 | J44: Sekcja | K44: 07:00 - 19:00 | N44: wybierz kasę z listy | O44: 43 | R44: Gdynia Gł | S44: 7 | T44: Gdynia Gł, kasa nr 07 | U44: 48 1140 1010 4167 0000 0054 1007
C45: =_xlfn.IFNA(VLOOKUP(ROWS($C$5:$C45),D45:E267,2,FALSE),"") -> Gliwice, kasa nr 06 | D45: =IF(ISNUMBER(SEARCH($D$3,E45)),MAX($D$4:$D44)+1,0) -> 41 | E45: Gliwice, kasa nr 06 | F45: 42 1140 1010 4167 0000 0052 2006 | G45: Gliwice | H45: K-06 | I45: 6 | J45: Sekcja Handlowa w Katowicach | K45: 07:00 - 19:00 | L45: olga.glab@intercity.pl;anna.jablonska@intercity.pl;zdzislawa.rosochacka@intercity.pl; | N45: 45 | O45: 44 | R45: Gdynia Gł | S45: 8 | T45: Gdynia Gł, kasa nr 08 | U45: 21 1140 1010 4167 0000 0054 1008
C46: =_xlfn.IFNA(VLOOKUP(ROWS($C$5:$C46),D46:E268,2,FALSE),"") -> Gliwice, kasa nr 13 | D46: =IF(ISNUMBER(SEARCH($D$3,E46)),MAX($D$4:$D45)+1,0) -> 42 | E46: Gliwice, kasa nr 13 | F46: 47 1140 1010 4167 0000 0052 2013 | G46: Gliwice | H46: K-13 | I46: 13 | J46: Sekcja Handlowa w Katowicach | K46: 05:00 - 13:00 | L46: olga.glab@intercity.pl;anna.jablonska@intercity.pl;zdzislawa.rosochacka@intercity.pl; | N46: 46 | O46: 45 | R46: Gdynia Gł | S46: 19 | T46: Gdynia Gł, kasa nr 19 | U46: 15 1140 1010 4167 0000 0054 1019
C47: =_xlfn.IFNA(VLOOKUP(ROWS($C$5:$C47),D47:E269,2,FALSE),"") -> Gliwice, kasa nr 43 | D47: =IF(ISNUMBER(SEARCH($D$3,E47)),MAX($D$4:$D46)+1,0) -> 43 | E47: Gliwice, kasa nr 43 | F47: 13 1140 1010 4167 0000 0052 2043 | G47: Gliwice | H47: K-43 | I47: 43 | J47: Sekcja Handlowa w Katowicach | K47: 07:00 - 19:00 | L47: olga.glab@intercity.pl;anna.jablonska@intercity.pl;zdzislawa.rosochacka@intercity.pl; | N47: wybierz kasę z listy | O47: 46 | R47: Gdynia Gł | S47: 20 | T47: Gdynia Gł, kasa nr 20 | U47: 85 1140 1010 4167 0000 0054 1020
C48: =_xlfn.IFNA(VLOOKUP(ROWS($C$5:$C48),D48:E270,2,FALSE),"") -> Gniezno, kasa nr 09 | D48: =IF(ISNUMBER(SEARCH($D$3,E48)),MAX($D$4:$D47)+1,0) -> 44 | E48: Gniezno, kasa nr 09 | F48: 43 1140 1010 4167 0000 0053 1009 | G48: Gniezno | H48: K-09 | I48: 9 | J48: Sekcja | K48: 07:00 - 19:00 | N48: wybierz kasę z listy | O48: 47 | R48: Gdynia Gł | S48: 25 | T48: Gdynia Gł, kasa nr 25 | U48: 47 1140 1010 4167 0000 0054 1025
C49: =_xlfn.IFNA(VLOOKUP(ROWS($C$5:$C49),D49:E271,2,FALSE),"") -> Iława Główna, kasa nr 02 | D49: =IF(ISNUMBER(SEARCH($D$3,E49)),MAX($D$4:$D48)+1,0) -> 45 | E49: Iława Główna, kasa nr 02 | F49: 81 1140 1010 4167 0000 0054 4002 | G49: Iława Główna | H49: K-02 | I49: 2 | J49: Sekcja | K49: 07:00 - 19:00 | N49: wybierz kasę z listy | O49: 48 | R49: Gdynia Gł | S49: 41 | T49: Gdynia Gł, kasa nr 41 | U49: 23 1140 1010 4167 0000 0004 4041
C50: =_xlfn.IFNA(VLOOKUP(ROWS($C$5:$C50),D50:E272,2,FALSE),"") -> Iława Główna, kasa nr 24 | D50: =IF(ISNUMBER(SEARCH($D$3,E50)),MAX($D$4:$D49)+1,0) -> 46 | E50: Iława Główna, kasa nr 24 | F50: 69 1140 1010 4167 0000 0054 4024 | G50: Iława Główna | H50: K-24 | I50: 24 | J50: Sekcja | K50: 07:00 - 19:00 | N50: wybierz kasę z listy | O50: 49 | R50: Gliwice | S50: 6 | T50: Gliwice, kasa nr 06 | U50: 42 1140 1010 4167 0000 0052 2006
C51: =_xlfn.IFNA(VLOOKUP(ROWS($C$5:$C51),D51:E273,2,FALSE),"") -> Jarosław, kasa nr 04 | D51: =IF(ISNUMBER(SEARCH($D$3,E51)),MAX($D$4:$D50)+1,0) -> 47 | E51: Jarosław, kasa nr 04 | F51: 87 1140 1010 4167 0000 0002 3004 | G51: Jarosław | H51: K-04 | I51: 4 | J51: Sekcja Handlowa w Przemyślu | K51: 09:00 - 17:00 | L51: Malgorzata.Brzezawska@intercity.pl | N51: ?????????? | O51: 50 | R51: Gliwice | S51: 13 | T51: Gliwice, kasa nr 13 | U51: 47 1140 1010 4167 0000 0052 2013
C52: =_xlfn.IFNA(VLOOKUP(ROWS($C$5:$C52),D52:E274,2,FALSE),"") -> Jarosław, kasa nr 08 | D52: =IF(ISNUMBER(SEARCH($D$3,E52)),MAX($D$4:$D51)+1,0) -> 48 | E52: Jarosław, kasa nr 08 | F52: 51 1140 1010 4167 0000 0052 3008 | G52: Jarosław | H52: K-08 | I52: 8 | J52: Sekcja Handlowa w Przemyślu | K52: 07:00 - 19:00 | L52: Malgorzata.Brzezawska@intercity.pl | N52: 335 | O52: 51 | R52: Gliwice | S52: 43 | T52: Gliwice, kasa nr 43 | U52: 13 1140 1010 4167 0000 0052 2043
C53: =_xlfn.IFNA(VLOOKUP(ROWS($C$5:$C53),D53:E275,2,FALSE),"") -> Jastarnia, kasa nr 30 | D53: =IF(ISNUMBER(SEARCH($D$3,E53)),MAX($D$4:$D52)+1,0) -> 49 | E53: Jastarnia, kasa nr 30 | F53: 33 1140 1010 4167 0000 0054 6030 | G53: Jastarnia | H53: K-30 | I53: 30 | J53: Sekcja | K53: 07:00 - 19:00 | N53: wybierz kasę z listy | O53: 52 | R53: Gniezno | S53: 09 | T53: Gniezno, kasa nr 09 | U53: 43 1140 1010 4167 0000 0053 1009
C54: =_xlfn.IFNA(VLOOKUP(ROWS($C$5:$C54),D54:E276,2,FALSE),"") -> Jaworsk, kasa nr 08 | D54: =IF(ISNUMBER(SEARCH($D$3,E54)),MAX($D$4:$D53)+1,0) -> 50 | E54: Jaworsk, kasa nr 08 | F54: 51 1140 1010 4167 0000 0052 3008 | G54: Jaworsk | H54: K-08 | I54: 8 | J54: Sekcja | K54: 07:00 - 19:00 | N54: wybierz kasę z listy | O54: 53 | R54: Iława Główna | S54: 2 | T54: Iława Główna, kasa nr 02 | U54: 81 1140 1010 4167 0000 0054 4002
C55: =_xlfn.IFNA(VLOOKUP(ROWS($C$5:$C55),D55:E277,2,FALSE),"") -> Kalisz, kasa nr 24 | D55: =IF(ISNUMBER(SEARCH($D$3,E55)),MAX($D$4:$D54)+1,0) -> 51 | E55: Kalisz, kasa nr 24 | F55: 26 1140 1010 4167 0000 0053 1024 | G55: Kalisz | H55: K-24 | I55: 24 | J55: Sekcja | K55: 07:00 - 19:00 | N55: wybierz kasę z listy | O55: 54 | R55: Iława Główna | S55: 24 | T55: Iława Główna, kasa nr 24 | U55: 69 1140 1010 4167 0000 0054 4024
C56: =_xlfn.IFNA(VLOOKUP(ROWS($C$5:$C56),D56:E278,2,FALSE),"") -> Katowice, kasa nr 01 | D56: =IF(ISNUMBER(SEARCH($D$3,E56)),MAX($D$4:$D55)+1,0) -> 52 | E56: Katowice, kasa nr 01 | F56: 80 1140 1010 4167 0000 0052 2001 | G56: Katowice | H56: K-01 | I56: 1 | J56: Sekcja Handlowa w Katowicach | K56: 07:30 - 19:30 | L56: olga.glab@intercity.pl;anna.jablonska@intercity.pl;zdzislawa.rosochacka@intercity.pl; | N56: 56 | O56: 55 | R56: Jarosław | S56: 4 | T56: Jarosław, kasa nr 04 | U56: 87 1140 1010 4167 0000 0002 3004
C57: =_xlfn.IFNA(VLOOKUP(ROWS($C$5:$C57),D57:E279,2,FALSE),"") -> Katowice, kasa nr 02 | D57: =IF(ISNUMBER(SEARCH($D$3,E57)),MAX($D$4:$D56)+1,0) -> 53 | E57: Katowice, kasa nr 02 | F57: 53 1140 1010 4167 0000 0052 2002 | G57: Katowice | H57: K-02 | I57: 2 | J57: Sekcja Handlowa w Katowicach | K57: 05:30 - 13:30 | L57: olga.glab@intercity.pl;anna.jablonska@intercity.pl;zdzislawa.rosochacka@intercity.pl; | N57: 55 | O57: 56 | R57: Jarosław | S57: 08 | T57: Jarosław, kasa nr 08 | U57: 51 1140 1010 4167 0000 0052 3008
C58: =_xlfn.IFNA(VLOOKUP(ROWS($C$5:$C58),D58:E280,2,FALSE),"") -> Katowice, kasa nr 03 | D58: =IF(ISNUMBER(SEARCH($D$3,E58)),MAX($D$4:$D57)+1,0) -> 54 | E58: Katowice, kasa nr 03 | F58: 26 1140 1010 4167 0000 0052 2003 | G58: Katowice | H58: K-03 | I58: 3 | J58: Sekcja Handlowa w Katowicach | K58: 08:00 - 20:00 | L58: olga.glab@intercity.pl;anna.jablonska@intercity.pl;zdzislawa.rosochacka@intercity.pl; | N58: 58 | O58: 57 | R58: Jastarnia | S58: 30 | T58: Jastarnia, kasa nr 30 | U58: 33 1140 1010 4167 0000 0054 6030
C59: =_xlfn.IFNA(VLOOKUP(ROWS($C$5:$C59),D59:E281,2,FALSE),"") -> Katowice, kasa nr 04 | D59: =IF(ISNUMBER(SEARCH($D$3,E59)),MAX($D$4:$D58)+1,0) -> 55 | E59: Katowice, kasa nr 04 | F59: 96 1140 1010 4167 0000 0052 2004 | G59: Katowice | H59: K-04 | I59: 4 | J59: Sekcja Handlowa w Katowicach | K59: 06:00 - 18:00 | L59: olga.glab@intercity.pl;anna.jablonska@intercity.pl;zdzislawa.rosochacka@intercity.pl; | N59: 50 | O59: 58 | R59: Kalisz | S59: 24 | T59: Kalisz, kasa nr 24 | U59: 26 1140 1010 4167 0000 0053 1024
C60: =_xlfn.IFNA(VLOOKUP(ROWS($C$5:$C60),D60:E282,2,FALSE),"") -> Katowice, kasa nr 05 | D60: =IF(ISNUMBER(SEARCH($D$3,E60)),MAX($D$4:$D59)+1,0) -> 56 | E60: Katowice, kasa nr 05 | F60: 69 1140 1010 4167 0000 0052 2005 | G60: Katowice | H60: K-05 | I60: 5 | J60: Sekcja Handlowa w Katowicach | K60: 06:30 - 18:30 | L60: olga.glab@intercity.pl;anna.jablonska@intercity.pl;zdzislawa.rosochacka@intercity.pl; | N60: 51 | O60: 59 | R60: Katowice - kasa konduktorska | S60: 1 | T60: Katowice - kasa konduktorska, kasa nr 01 | U60: 63 1140 1010 4167 0000 0052 2501
C61: =_xlfn.IFNA(VLOOKUP(ROWS($C$5:$C61),D61:E283,2,FALSE),"") -> Katowice, kasa nr 12 | D61: =IF(ISNUMBER(SEARCH($D$3,E61)),MAX($D$4:$D60)+1,0) -> 57 | E61: Katowice, kasa nr 12 | F61: 74 1140 1010 4167 0000 0052 2012 | G61: Katowice | H61: K-12 | I61: 12 | J61: Sekcja Handlowa w Katowicach | K61: 08:00 - 20:00 | L61: olga.glab@intercity.pl;anna.jablonska@intercity.pl;zdzislawa.rosochacka@intercity.pl; | N61: 57 | O61: 60 | R61: Katowice | S61: 1 | T61: Katowice, kasa nr 01 | U61: 80 1140 1010 4167 0000 0052 2001
C62: =_xlfn.IFNA(VLOOKUP(ROWS($C$5:$C62),D62:E284,2,FALSE),"") -> Katowice, kasa nr 17 | D62: =IF(ISNUMBER(SEARCH($D$3,E62)),MAX($D$4:$D61)+1,0) -> 58 | E62: Katowice, kasa nr 17 | F62: 36 1140 1010 4167 0000 0052 2017 | G62: Katowice | H62: K-17 | I62: 17 | J62: Sekcja Handlowa w Katowicach | K62: 07:00 - 19:00 | L62: olga.glab@intercity.pl;anna.jablonska@intercity.pl;zdzislawa.rosochacka@intercity.pl; | N62: 52 | O62: 61 | R62: Katowice | S62: 2 | T62: Katowice, kasa nr 02 | U62: 53 1140 1010 4167 0000 0052 2002
C63: =_xlfn.IFNA(VLOOKUP(ROWS($C$5:$C63),D63:E285,2,FALSE),"") -> Katowice, kasa nr 26 | D63: =IF(ISNUMBER(SEARCH($D$3,E63)),MAX($D$4:$D62)+1,0) -> 59 | E63: Katowice, kasa nr 26 | F63: 84 1140 1010 4167 0000 0052 2026 | G63: Katowice | H63: K-26 | I63: 26 | J63: Sekcja Handlowa w Katowicach | K63: 06:20 - 18:20 | L63: olga.glab@intercity.pl;anna.jablonska@intercity.pl;zdzislawa.rosochacka@intercity.pl; | N63: 53 | O63: 62 | R63: Katowice | S63: 3 | T63: Katowice, kasa nr 03 | U63: 26 1140 1010 4167 0000 0052 2003
C64: =_xlfn.IFNA(VLOOKUP(ROWS($C$5:$C64),D64:E286,2,FALSE),"") -> Katowice, kasa nr 28 | D64: =IF(ISNUMBER(SEARCH($D$3,E64)),MAX($D$4:$D63)+1,0) -> 60 | E64: Katowice, kasa nr 28 | F64: 30 1140 1010 4167 0000 0052 2028 | G64: Katowice | H64: K-28 | I64: 28 | J64: Sekcja Handlowa w Katowicach | K64: 06:30 - 18:30 | L64: olga.glab@intercity.pl;anna.jablonska@intercity.pl;zdzislawa.rosochacka@intercity.pl; | N64: 54 | O64: 63 | R64: Katowice | S64: 4 | T64: Katowice, kasa nr 04 | U64: 96 1140 1010 4167 0000 0052 2004
C65: =_xlfn.IFNA(VLOOKUP(ROWS($C$5:$C65),D65:E287,2,FALSE),"") -> Katowice, kasa nr 30 | D65: =IF(ISNUMBER(SEARCH($D$3,E65)),MAX($D$4:$D64)+1,0) -> 61 | E65: Katowice, kasa nr 30 | F65: 73 1140 1010 4167 0000 0052 2030 | G65: Katowice | H65: K-30 | I65: 30 | J65: Sekcja Handlowa w Katowicach | K65: 08:00 - 20:00 | L65: olga.glab@intercity.pl;anna.jablonska@intercity.pl;zdzislawa.rosochacka@intercity.pl; | N65: 59 | O65: 64 | R65: Katowice | S65: 5 | T65: Katowice, kasa nr 05 | U65: 69 1140 1010 4167 0000 0052 2005
C66: =_xlfn.IFNA(VLOOKUP(ROWS($C$5:$C66),D66:E288,2,FALSE),"") -> Kedzierzyn Koźle, kasa nr 31 | D66: =IF(ISNUMBER(SEARCH($D$3,E66)),MAX($D$4:$D65)+1,0) -> 62 | E66: Kedzierzyn Koźle, kasa nr 31 | F66: 46 1140 1010 4167 0000 0052 2031 | G66: Kedzierzyn Koźle | H66: K-31 | I66: 31 | J66: Sekcja | K66: 07:00 - 19:00 | N66: wybierz kasę z listy | O66: 65 | R66: Katowice | S66: 12 | T66: Katowice, kasa nr 12 | U66: 74 1140 1010 4167 0000 0052 2012
C67: =_xlfn.IFNA(VLOOKUP(ROWS($C$5:$C67),D67:E289,2,FALSE),"") -> Kielce, kasa nr 04 | D67: =IF(ISNUMBER(SEARCH($D$3,E67)),MAX($D$4:$D66)+1,0) -> 63 | E67: Kielce, kasa nr 04 | F67: 33 1140 1010 4167 0000 0052 1004 | G67: Kielce | H67: K-04 | I67: 4 | J67: Sekcja Handlowa w Krakowie | K67: 07:00 - 19:00 | N67: wybierz kasę z listy | O67: 66 | R67: Katowice | S67: 15 | T67: Katowice, kasa nr 15 | U67: 90 1140 1010 4167 0000 0052 2015
C68: =_xlfn.IFNA(VLOOKUP(ROWS($C$5:$C68),D68:E290,2,FALSE),"") -> Kielce, kasa nr 36 | D68: =IF(ISNUMBER(SEARCH($D$3,E68)),MAX($D$4:$D67)+1,0) -> 64 | E68: Kielce, kasa nr 36 | F68: 42 1140 1010 4167 0000 0052 1036 | G68: Kielce | H68: =IF(VALUE(I68)<10,"K-"&"0"&I68,"K-"&I68) -> K-36 | I68: 36 | J68: Sekcja Handlowa w Krakowie | K68: 07:00 - 19:00 | N68: wybierz kasę z listy | O68: 67 | R68: Katowice | S68: 17 | T68: Katowice, kasa nr 17 | U68: 36 1140 1010 4167 0000 0052 2017
C69: =_xlfn.IFNA(VLOOKUP(ROWS($C$5:$C69),D69:E291,2,FALSE),"") -> Kielce, kasa nr 64 | D69: =IF(ISNUMBER(SEARCH($D$3,E69)),MAX($D$4:$D68)+1,0) -> 65 | E69: Kielce, kasa nr 64 | F69: 62 1140 1010 4167 0000 0052 1064 | G69: Kielce | H69: K-64 | I69: 64 | J69: Sekcja Handlowa w Krakowie | K69: 07:00 - 19:00 | N69: wybierz kasę z listy | O69: 68 | R69: Katowice | S69: 26 | T69: Katowice, kasa nr 26 | U69: 84 1140 1010 4167 0000 0052 2026
C70: =_xlfn.IFNA(VLOOKUP(ROWS($C$5:$C70),D70:E292,2,FALSE),"") -> Kołobrzeg, kasa nr 32 | D70: =IF(ISNUMBER(SEARCH($D$3,E70)),MAX($D$4:$D69)+1,0) -> 66 | E70: Kołobrzeg, kasa nr 32 | F70: 52 1140 1010 4167 0000 0054 1032 | G70: Kołobrzeg | H70: K-32 | I70: 32 | J70: Sekcja | K70: 07:00 - 19:00 | N70: wybierz kasę z listy | O70: 69 | R70: Katowice | S70: 28 | T70: Katowice, kasa nr 28 | U70: 30 1140 1010 4167 0000 0052 2028
C71: =_xlfn.IFNA(VLOOKUP(ROWS($C$5:$C71),D71:E293,2,FALSE),"") -> Kołobrzeg, kasa nr 33 | D71: =IF(ISNUMBER(SEARCH($D$3,E71)),MAX($D$4:$D70)+1,0) -> 67 | E71: Kołobrzeg, kasa nr 33 | F71: 25 1140 1010 4167 0000 0054 1033 | G71: Kołobrzeg | H71: K-33 | I71: 33 | J71: Sekcja | K71: 07:00 - 19:00 | N71: wybierz kasę z listy | O71: 70 | R71: Katowice | S71: 30 | T71: Katowice, kasa nr 30 | U71: 73 1140 1010 4167 0000 0052 2030
C72: =_xlfn.IFNA(VLOOKUP(ROWS($C$5:$C72),D72:E294,2,FALSE),"") -> Kołobrzeg, kasa nr 34 | D72: =IF(ISNUMBER(SEARCH($D$3,E72)),MAX($D$4:$D71)+1,0) -> 68 | E72: Kołobrzeg, kasa nr 34 | F72: 95 1140 1010 4167 0000 0054 1034 | G72: Kołobrzeg | H72: K-34 | I72: 34 | J72: Sekcja | K72: 07:00 - 19:00 | N72: wybierz kasę z listy | O72: 71 | R72: Kedzierzyn Koźle | S72: 31 | T72: Kedzierzyn Koźle, kasa nr 31 | U72: 46 1140 1010 4167 0000 0052 2031
C73: =_xlfn.IFNA(VLOOKUP(ROWS($C$5:$C73),D73:E295,2,FALSE),"") -> Kołobrzeg, kasa nr 35 | D73: =IF(ISNUMBER(SEARCH($D$3,E73)),MAX($D$4:$D72)+1,0) -> 69 | E73: Kołobrzeg, kasa nr 35 | F73: 68 1140 1010 4167 0000 0054 1035 | G73: Kołobrzeg | H73: K-35 | I73: 35 | J73: Sekcja | K73: 07:00 - 19:00 | N73: wybierz kasę z listy | O73: 72 | R73: Kielce | S73: 4 | T73: Kielce, kasa nr 04 | U73: 33 1140 1010 4167 0000 0052 1004
C74: =_xlfn.IFNA(VLOOKUP(ROWS($C$5:$C74),D74:E296,2,FALSE),"") -> Konin, kasa nr 08 | D74: =IF(ISNUMBER(SEARCH($D$3,E74)),MAX($D$4:$D73)+1,0) -> 70 | E74: Konin, kasa nr 08 | F74: 70 1140 1010 4167 0000 0053 1008 | G74: Konin | H74: K-08 | I74: 8 | J74: Sekcja | K74: 07:00 - 19:00 | N74: wybierz kasę z listy | O74: 73 | R74: Kielce | S74: 36 | T74: Kielce, kasa nr 36 | U74: 42 1140 1010 4167 0000 0052 1036
C75: =_xlfn.IFNA(VLOOKUP(ROWS($C$5:$C75),D75:E297,2,FALSE),"") -> Koszalin, kasa nr 36 | D75: =IF(ISNUMBER(SEARCH($D$3,E75)),MAX($D$4:$D74)+1,0) -> 71 | E75: Koszalin, kasa nr 36 | F75: 41 1140 1010 4167 0000 0054 1036 | G75: Koszalin | H75: K-36 | I75: 36 | J75: Sekcja | K75: 07:00 - 19:00 | N75: wybierz kasę z listy | O75: 74 | R75: Kielce | S75: 64 | T75: Kielce, kasa nr 64 | U75: 62 1140 1010 4167 0000 0052 1064
C76: =_xlfn.IFNA(VLOOKUP(ROWS($C$5:$C76),D76:E298,2,FALSE),"") -> Koszalin, kasa nr 38 | D76: =IF(ISNUMBER(SEARCH($D$3,E76)),MAX($D$4:$D75)+1,0) -> 72 | E76: Koszalin, kasa nr 38 | F76: 84 1140 1010 4167 0000 0054 1038 | G76: Koszalin | H76: K-38 | I76: 38 | J76: Sekcja | K76: 07:00 - 19:00 | N76: wybierz kasę z listy | O76: 75 | R76: Kołobrzeg - kasa konduktorska | S76: 1 | T76: Kołobrzeg - kasa konduktorska, kasa nr 01 | U76: 96 1140 1010 4167 0000 0054 1501
C77: =_xlfn.IFNA(VLOOKUP(ROWS($C$5:$C77),D77:E299,2,FALSE),"") -> Kościan, kasa nr 23 | D77: =IF(ISNUMBER(SEARCH($D$3,E77)),MAX($D$4:$D76)+1,0) -> 73 | E77: Kościan, kasa nr 23 | F77: 53 1140 1010 4167 0000 0053 1023 | G77: Kościan | H77: K-23 | I77: 23 | J77: Sekcja | K77: 07:00 - 19:00 | N77: wybierz kasę z listy | O77: 76 | R77: Kołobrzeg | S77: 32 | T77: Kołobrzeg, kasa nr 32 | U77: 52 1140 1010 4167 0000 0054 1032
C78: =_xlfn.IFNA(VLOOKUP(ROWS($C$5:$C78),D78:E300,2,FALSE),"") -> Kraków Płaszów, kasa nr 11 | D78: =IF(ISNUMBER(SEARCH($D$3,E78)),MAX($D$4:$D77)+1,0) -> 74 | E78: Kraków Płaszów, kasa nr 11 | F78: 38 1140 1010 4167 0000 0052 1011 | G78: Kraków Płaszów | H78: K-11 | I78: 11 | J78: Sekcja Handlowa w Krakowie | K78: 07:00 - 19:00 | N78: wybierz kasę z listy | O78: 77 | R78: Kołobrzeg | S78: 33 | T78: Kołobrzeg, kasa nr 33 | U78: 25 1140 1010 4167 0000 0054 1033
C79: =_xlfn.IFNA(VLOOKUP(ROWS($C$5:$C79),D79:E301,2,FALSE),"") -> Kraków Płaszów, kasa nr 26 | D79: =IF(ISNUMBER(SEARCH($D$3,E79)),MAX($D$4:$D78)+1,0) -> 75 | E79: Kraków Płaszów, kasa nr 26 | F79: 21 1140 1010 4167 0000 0052 1026 | G79: Kraków Płaszów | H79: K-26 | I79: 26 | J79: Sekcja Handlowa w Krakowie | K79: 07:00 - 19:00 | N79: wybierz kasę z listy | O79: 78 | R79: Kołobrzeg | S79: 34 | T79: Kołobrzeg, kasa nr 34 | U79: 95 1140 1010 4167 0000 0054 1034
C80: =_xlfn.IFNA(VLOOKUP(ROWS($C$5:$C80),D80:E302,2,FALSE),"") -> Kraków Płaszów, kasa nr 37 | D80: =IF(ISNUMBER(SEARCH($D$3,E80)),MAX($D$4:$D79)+1,0) -> 76 | E80: Kraków Płaszów, kasa nr 37 | F80: 15 1140 1010 4167 0000 0052 1037 | G80: Kraków Płaszów | H80: K-37 | I80: 37 | J80: Sekcja Handlowa w Krakowie | K80: 07:00 - 19:00 | N80: wybierz kasę z listy | O80: 79 | R80: Kołobrzeg | S80: 35 | T80: Kołobrzeg, kasa nr 35 | U80: 68 1140 1010 4167 0000 0054 1035
C81: =_xlfn.IFNA(VLOOKUP(ROWS($C$5:$C81),D81:E303,2,FALSE),"") -> Kutno, kasa nr 16 | D81: =IF(ISNUMBER(SEARCH($D$3,E81)),MAX($D$4:$D80)+1,0) -> 77 | E81: Kutno, kasa nr 16 | F81: 10 1140 1010 4167 0000 0051 5016 | G81: Kutno | H81: K-16 | I81: 16 | J81: Sekcja | K81: 07:00 - 19:00 | N81: wybierz kasę z listy | O81: 80 | R81: Konin | S81: 08 | T81: Konin, kasa nr 08 | U81: 70 1140 1010 4167 0000 0053 1008
C82: =_xlfn.IFNA(VLOOKUP(ROWS($C$5:$C82),D82:E304,2,FALSE),"") -> Kutno, kasa nr 66 | D82: =IF(ISNUMBER(SEARCH($D$3,E82)),MAX($D$4:$D81)+1,0) -> 78 | E82: Kutno, kasa nr 66 | F82: 18 1140 1010 4167 0000 0051 5066 | G82: Kutno | H82: K-66 | I82: 66 | J82: Sekcja | K82: 07:00 - 19:00 | N82: wybierz kasę z listy | O82: 81 | R82: Koszalin | S82: 36 | T82: Koszalin, kasa nr 36 | U82: 41 1140 1010 4167 0000 0054 1036
C83: =_xlfn.IFNA(VLOOKUP(ROWS($C$5:$C83),D83:E305,2,FALSE),"") -> Legnica, kasa nr 28 | D83: =IF(ISNUMBER(SEARCH($D$3,E83)),MAX($D$4:$D82)+1,0) -> 79 | E83: Legnica, kasa nr 28 | F83: 78 1140 1010 4167 0000 0053 2028 | G83: Legnica | H83: K-28 | I83: 28 | J83: Sekcja | K83: 07:00 - 19:00 | N83: wybierz kasę z listy | O83: 82 | R83: Koszalin | S83: 38 | T83: Koszalin, kasa nr 38 | U83: 84 1140 1010 4167 0000 0054 1038
C84: =_xlfn.IFNA(VLOOKUP(ROWS($C$5:$C84),D84:E306,2,FALSE),"") -> Leszno, kasa nr 10 | D84: =IF(ISNUMBER(SEARCH($D$3,E84)),MAX($D$4:$D83)+1,0) -> 80 | E84: Leszno, kasa nr 10 | F84: 16 1140 1010 4167 0000 0053 1010 | G84: Leszno | H84: K-10 | I84: 10 | J84: Sekcja | K84: 07:00 - 19:00 | N84: wybierz kasę z listy | O84: 83 | R84: Kościan | S84: 23 | T84: Kościan, kasa nr 23 | U84: 53 1140 1010 4167 0000 0053 1023
C85: =_xlfn.IFNA(VLOOKUP(ROWS($C$5:$C85),D85:E307,2,FALSE),"") -> Leszno, kasa nr 22 | D85: =IF(ISNUMBER(SEARCH($D$3,E85)),MAX($D$4:$D84)+1,0) -> 81 | E85: Leszno, kasa nr 22 | F85: 80 1140 1010 4167 0000 0053 1022 | G85: Leszno | H85: K-22 | I85: 22 | J85: Sekcja | K85: 07:00 - 19:00 | N85: wybierz kasę z listy | O85: 84 | R85: Kraków Płaszów | S85: 11 | T85: Kraków Płaszów, kasa nr 11 | U85: 38 1140 1010 4167 0000 0052 1011
C86: =_xlfn.IFNA(VLOOKUP(ROWS($C$5:$C86),D86:E308,2,FALSE),"") -> Lębork , kasa nr 40 | D86: =IF(ISNUMBER(SEARCH($D$3,E86)),MAX($D$4:$D85)+1,0) -> 82 | E86: Lębork , kasa nr 40 | F86: 25 1140 1010 4167 0000 0054 4040 | G86: Lębork | H86: K-40 | I86: 40 | J86: Sekcja | K86: 07:00 - 19:00 | N86: wybierz kasę z listy | O86: 85 | R86: Kraków Płaszów | S86: 26 | T86: Kraków Płaszów, kasa nr 26 | U86: 21 1140 1010 4167 0000 0052 1026
C87: =_xlfn.IFNA(VLOOKUP(ROWS($C$5:$C87),D87:E309,2,FALSE),"") -> Lublin, kasa nr 01 | D87: =IF(ISNUMBER(SEARCH($D$3,E87)),MAX($D$4:$D86)+1,0) -> 83 | E87: Lublin, kasa nr 01 | F87: 95 1140 1010 4167 0000 0051 3001 | G87: Lublin | H87: K-01 | I87: 1 | J87: Sekcja | K87: 07:00 - 19:00 | N87: wybierz kasę z listy | O87: 86 | R87: Kraków Płaszów | S87: 37 | T87: Kraków Płaszów, kasa nr 37 | U87: 15 1140 1010 4167 0000 0052 1037
C88: =_xlfn.IFNA(VLOOKUP(ROWS($C$5:$C88),D88:E310,2,FALSE),"") -> Lublin, kasa nr 02 | D88: =IF(ISNUMBER(SEARCH($D$3,E88)),MAX($D$4:$D87)+1,0) -> 84 | E88: Lublin, kasa nr 02 | F88: 68 1140 1010 4167 0000 0051 3002 | G88: Lublin | H88: K-02 | I88: 2 | J88: Sekcja | K88: 07:00 - 19:00 | N88: wybierz kasę z listy | O88: 87 | R88: Kraków Główny - kasa konduktorska | S88: 1 | T88: Kraków Główny - kasa konduktorska, kasa nr 01 | U88: 97 1140 1010 4167 0000 0052 1501
C89: =_xlfn.IFNA(VLOOKUP(ROWS($C$5:$C89),D89:E311,2,FALSE),"") -> Lublin, kasa nr 03 | D89: =IF(ISNUMBER(SEARCH($D$3,E89)),MAX($D$4:$D88)+1,0) -> 85 | E89: Lublin, kasa nr 03 | F89: 41 1140 1010 4167 0000 0051 3003 | G89: Lublin | H89: K-03 | I89: 3 | J89: Sekcja | K89: 07:00 - 19:00 | N89: wybierz kasę z listy | O89: 88 | R89: Kraków Płaszów - kasa konduktorska | S89: 7 | T89: Kraków Płaszów - kasa konduktorska, kasa nr 07 | U89: 32 1140 1010 4167 0000 0052 1507
C90: =_xlfn.IFNA(VLOOKUP(ROWS($C$5:$C90),D90:E312,2,FALSE),"") -> Lublin, kasa nr 65 | D90: =IF(ISNUMBER(SEARCH($D$3,E90)),MAX($D$4:$D89)+1,0) -> 86 | E90: Lublin, kasa nr 65 | F90: 16 1140 1010 4167 0000 0051 3065 | G90: Lublin | H90: K-65 | I90: 65 | J90: Sekcja | K90: 07:00 - 19:00 | N90: wybierz kasę z listy | O90: 89 | R90: Kutno - kasa konduktorska | S90: 4 | T90: Kutno - kasa konduktorska, kasa nr 04 | U90: 26 1140 1010 4167 0000 0051 5504
C91: =_xlfn.IFNA(VLOOKUP(ROWS($C$5:$C91),D91:E313,2,FALSE),"") -> Łeba, kasa nr 05 | D91: =IF(ISNUMBER(SEARCH($D$3,E91)),MAX($D$4:$D90)+1,0) -> 87 | E91: Łeba, kasa nr 05 | F91: 29 1140 1010 4167 0000 0054 6005 | G91: Łeba | H91: K-05 | I91: 5 | J91: Sekcja | K91: 07:00 - 19:00 | N91: wybierz kasę z listy | O91: 90 | R91: Kutno | S91: 16 | T91: Kutno, kasa nr 16 | U91: 10 1140 1010 4167 0000 0051 5016
C92: =_xlfn.IFNA(VLOOKUP(ROWS($C$5:$C92),D92:E314,2,FALSE),"") -> Łowicz, kasa nr 12 | D92: =IF(ISNUMBER(SEARCH($D$3,E92)),MAX($D$4:$D91)+1,0) -> 88 | E92: Łowicz, kasa nr 12 | F92: 21 1140 1010 4167 0000 0051 5012 | G92: Łowicz | H92: K-12 | I92: 12 | J92: Sekcja | K92: 07:00 - 19:00 | N92: wybierz kasę z listy | O92: 91 | R92: Kutno | S92: 66 | T92: Kutno, kasa nr 66 | U92: 18 1140 1010 4167 0000 0051 5066
C93: =_xlfn.IFNA(VLOOKUP(ROWS($C$5:$C93),D93:E315,2,FALSE),"") -> Łódź Chojny, kasa nr 01 | D93: =IF(ISNUMBER(SEARCH($D$3,E93)),MAX($D$4:$D92)+1,0) -> 89 | E93: Łódź Chojny, kasa nr 01 | F93: 27 1140 1010 4167 0000 0051 5001 | G93: Łódź Chojny | H93: K-01 | I93: 1 | J93: Sekcja | K93: 07:00 - 19:00 | N93: wybierz kasę z listy | O93: 92 | R93: Legnica | S93: 28 | T93: Legnica, kasa nr 28 | U93: 78 1140 1010 4167 0000 0053 2028
C94: =_xlfn.IFNA(VLOOKUP(ROWS($C$5:$C94),D94:E316,2,FALSE),"") -> Łódź Fabryczna, kasa nr 04 | D94: =IF(ISNUMBER(SEARCH($D$3,E94)),MAX($D$4:$D93)+1,0) -> 90 | E94: Łódź Fabryczna, kasa nr 04 | F94: 09 1140 1010 4167 0000 0051 6004 | G94: Łódź Fabryczna | H94: K-04 | I94: 4 | J94: Sekcja | K94: 07:00 - 19:00 | N94: wybierz kasę z listy | O94: 93 | R94: Leszno | S94: 10 | T94: Leszno, kasa nr 10 | U94: 16 1140 1010 4167 0000 0053 1010
C95: =_xlfn.IFNA(VLOOKUP(ROWS($C$5:$C95),D95:E317,2,FALSE),"") -> Łódź Fabryczna, kasa nr 06 | D95: =IF(ISNUMBER(SEARCH($D$3,E95)),MAX($D$4:$D94)+1,0) -> 91 | E95: Łódź Fabryczna, kasa nr 06 | F95: 52 1140 1010 4167 0000 0051 6006 | G95: Łódź Fabryczna | H95: K-06 | I95: 6 | J95: Sekcja | K95: 07:00 - 19:00 | N95: wybierz kasę z listy | O95: 94 | R95: Leszno | S95: 22 | T95: Leszno, kasa nr 22 | U95: 80 1140 1010 4167 0000 0053 1022
C96: =_xlfn.IFNA(VLOOKUP(ROWS($C$5:$C96),D96:E318,2,FALSE),"") -> Łódź Fabryczna, kasa nr 07 | D96: =IF(ISNUMBER(SEARCH($D$3,E96)),MAX($D$4:$D95)+1,0) -> 92 | E96: Łódź Fabryczna, kasa nr 07 | F96: 25 1140 1010 4167 0000 0051 6007 | G96: Łódź Fabryczna | H96: K-07 | I96: 7 | J96: Sekcja | K96: 07:00 - 19:00 | N96: wybierz kasę z listy | O96: 95 | R96: Lębork | S96: 40 | T96: Lębork , kasa nr 40 | U96: 25 1140 1010 4167 0000 0054 4040
C97: =_xlfn.IFNA(VLOOKUP(ROWS($C$5:$C97),D97:E319,2,FALSE),"") -> Łódź Fabryczna, kasa nr 15 | D97: =IF(ISNUMBER(SEARCH($D$3,E97)),MAX($D$4:$D96)+1,0) -> 93 | E97: Łódź Fabryczna, kasa nr 15 | F97: 03 1140 1010 4167 0000 0051 6015 | G97: Łódź Fabryczna | H97: K-15 | I97: 15 | J97: Sekcja | K97: 07:00 - 19:00 | N97: wybierz kasę z listy | O97: 96 | R97: Lublin - kasa konduktorska | S97: 9 | T97: Lublin - kasa konduktorska, kasa nr 09 | U97: 56 1140 1010 4167 0000 0051 3509
C98: =_xlfn.IFNA(VLOOKUP(ROWS($C$5:$C98),D98:E320,2,FALSE),"") -> Łódź Widzew, kasa nr 02 | D98: =IF(ISNUMBER(SEARCH($D$3,E98)),MAX($D$4:$D97)+1,0) -> 94 | E98: Łódź Widzew, kasa nr 02 | F98: 97 1140 1010 4167 0000 0051 5002 | G98: Łódź Widzew | H98: K-02 | I98: 2 | J98: Sekcja | K98: 07:00 - 19:00 | N98: wybierz kasę z listy | O98: 97 | R98: Lublin Główny | S98: 4 | T98: Lublin Główny, kasa nr 04 | U98: 39 1140 1010 4167 0000 0001 3004
C99: =_xlfn.IFNA(VLOOKUP(ROWS($C$5:$C99),D99:E321,2,FALSE),"") -> Łódź Widzew, kasa nr 09 | D99: =IF(ISNUMBER(SEARCH($D$3,E99)),MAX($D$4:$D98)+1,0) -> 95 | E99: Łódź Widzew, kasa nr 09 | F99: 52 1140 1010 4167 0000 0054 5009 | G99: Łódź Widzew | H99: K-09 | I99: 9 | J99: Sekcja | K99: 07:00 - 19:00 | N99: wybierz kasę z listy | O99: 98 | R99: Lublin | S99: 1 | T99: Lublin, kasa nr 01 | U99: 95 1140 1010 4167 0000 0051 3001
C100: =_xlfn.IFNA(VLOOKUP(ROWS($C$5:$C100),D100:E322,2,FALSE),"") -> Łódź Widzew, kasa nr 13 | D100: =IF(ISNUMBER(SEARCH($D$3,E100)),MAX($D$4:$D99)+1,0) -> 96 | E100: Łódź Widzew, kasa nr 13 | F100: 91 1140 1010 4167 0000 0051 5013 | G100: Łódź Widzew | H100: K-13 | I100: 13 | J100: Sekcja | K100: 07:00 - 19:00 | N100: wybierz kasę z listy | O100: 99 | R100: Lublin | S100: 2 | T100: Lublin, kasa nr 02 | U100: 68 1140 1010 4167 0000 0051 3002
C101: =_xlfn.IFNA(VLOOKUP(ROWS($C$5:$C101),D101:E323,2,FALSE),"") -> Łódź Widzew, kasa nr 14 | D101: =IF(ISNUMBER(SEARCH($D$3,E101)),MAX($D$4:$D100)+1,0) -> 97 | E101: Łódź Widzew, kasa nr 14 | F101: 64 1140 1010 4167 0000 0051 5014 | G101: Łódź Widzew | H101: K-14 | I101: 14 | J101: Sekcja | K101: 07:00 - 19:00 | N101: wybierz kasę z listy | O101: 100 | R101: Lublin | S101: 3 | T101: Lublin, kasa nr 03 | U101: 41 1140 1010 4167 0000 0051 3003
C102: =_xlfn.IFNA(VLOOKUP(ROWS($C$5:$C102),D102:E324,2,FALSE),"") -> Łódż Kaliska, kasa nr 04 | D102: =IF(ISNUMBER(SEARCH($D$3,E102)),MAX($D$4:$D101)+1,0) -> 98 | E102: Łódż Kaliska, kasa nr 04 | F102: 43 1140 1010 4167 0000 0051 5004 | G102: Łódż Kaliska | H102: K-04 | I102: 4 | J102: Sekcja | K102: 07:00 - 19:00 | N102: wybierz kasę z listy | O102: 101 | R102: Lublin | S102: 65 | T102: Lublin, kasa nr 65 | U102: 16 1140 1010 4167 0000 0051 3065
C103: =_xlfn.IFNA(VLOOKUP(ROWS($C$5:$C103),D103:E325,2,FALSE),"") -> Łódż Kaliska, kasa nr 07 | D103: =IF(ISNUMBER(SEARCH($D$3,E103)),MAX($D$4:$D102)+1,0) -> 99 | E103: Łódż Kaliska, kasa nr 07 | F103: 59 1140 1010 4167 0000 0051 5007 | G103: Łódż Kaliska | H103: K-07 | I103: 7 | J103: Sekcja | K103: 07:00 - 19:00 | N103: wybierz kasę z listy | O103: 102 | R103: Łeba | S103: 5 | T103: Łeba, kasa nr 05 | U103: 29 1140 1010 4167 0000 0054 6005
C104: =_xlfn.IFNA(VLOOKUP(ROWS($C$5:$C104),D104:E326,2,FALSE),"") -> Łódż Kaliska, kasa nr 08 | D104: =IF(ISNUMBER(SEARCH($D$3,E104)),MAX($D$4:$D103)+1,0) -> 100 | E104: Łódż Kaliska, kasa nr 08 | F104: 32 1140 1010 4167 0000 0051 5008 | G104: Łódż Kaliska | H104: K-08 | I104: 8 | J104: Sekcja | K104: 07:00 - 19:00 | N104: wybierz kasę z listy | O104: 103 | R104: Łowicz | S104: 12 | T104: Łowicz, kasa nr 12 | U104: 21 1140 1010 4167 0000 0051 5012
C105: =_xlfn.IFNA(VLOOKUP(ROWS($C$5:$C105),D105:E327,2,FALSE),"") -> Łódż Kaliska, kasa nr 09 | D105: =IF(ISNUMBER(SEARCH($D$3,E105)),MAX($D$4:$D104)+1,0) -> 101 | E105: Łódż Kaliska, kasa nr 09 | F105: 05 1140 1010 4167 0000 0051 5009 | G105: Łódż Kaliska | H105: K-09 | I105: 9 | J105: Sekcja | K105: 07:00 - 19:00 | N105: wybierz kasę z listy | O105: 104 | R105: Łódź Chojny | S105: 1 | T105: Łódź Chojny, kasa nr 01 | U105: 27 1140 1010 4167 0000 0051 5001
C106: =_xlfn.IFNA(VLOOKUP(ROWS($C$5:$C106),D106:E328,2,FALSE),"") -> Malbork, kasa nr 12 | D106: =IF(ISNUMBER(SEARCH($D$3,E106)),MAX($D$4:$D105)+1,0) -> 102 | E106: Malbork, kasa nr 12 | F106: 10 1140 1010 4167 0000 0054 1012 | G106: Malbork | H106: K-12 | I106: 12 | J106: Sekcja | K106: 07:00 - 19:00 | N106: wybierz kasę z listy | O106: 105 | R106: Łódź Fabryczna | S106: 4 | T106: Łódź Fabryczna, kasa nr 04 | U106: 09 1140 1010 4167 0000 0051 6004
C107: =_xlfn.IFNA(VLOOKUP(ROWS($C$5:$C107),D107:E329,2,FALSE),"") -> Malbork, kasa nr 15 | D107: =IF(ISNUMBER(SEARCH($D$3,E107)),MAX($D$4:$D106)+1,0) -> 103 | E107: Malbork, kasa nr 15 | F107: 26 1140 1010 4167 0000 0054 1015 | G107: Malbork | H107: K-15 | I107: 15 | J107: Sekcja | K107: 07:00 - 19:00 | N107: wybierz kasę z listy | O107: 106 | R107: Łódź Fabryczna | S107: 6 | T107: Łódź Fabryczna, kasa nr 06 | U107: 52 1140 1010 4167 0000 0051 6006
C108: =_xlfn.IFNA(VLOOKUP(ROWS($C$5:$C108),D108:E330,2,FALSE),"") -> Nowy Sącz, kasa nr 28 | D108: =IF(ISNUMBER(SEARCH($D$3,E108)),MAX($D$4:$D107)+1,0) -> 104 | E108: Nowy Sącz, kasa nr 28 | F108: 64 1140 1010 4167 0000 0052 1028 | G108: Nowy Sącz | H108: K-28 | I108: 28 | J108: Sekcja Handlowa w Krakowie | K108: 07:00 - 19:00 | N108: wybierz kasę z listy | O108: 107 | R108: Łódź Fabryczna | S108: 7 | T108: Łódź Fabryczna, kasa nr 07 | U108: 25 1140 1010 4167 0000 0051 6007
C109: =_xlfn.IFNA(VLOOKUP(ROWS($C$5:$C109),D109:E331,2,FALSE),"") -> Nowy Targ, kasa nr 29 | D109: =IF(ISNUMBER(SEARCH($D$3,E109)),MAX($D$4:$D108)+1,0) -> 105 | E109: Nowy Targ, kasa nr 29 | F109: 37 1140 1010 4167 0000 0052 1029 | G109: Nowy Targ | H109: K-29 | I109: 29 | J109: Sekcja Handlowa w Krakowie | K109: 07:00 - 19:00 | N109: wybierz kasę z listy | O109: 108 | R109: Łódź Fabryczna | S109: 15 | T109: Łódź Fabryczna, kasa nr 15 | U109: 03 1140 1010 4167 0000 0051 6015
C110: =_xlfn.IFNA(VLOOKUP(ROWS($C$5:$C110),D110:E332,2,FALSE),"") -> Olsztyn Główny, kasa nr 03 | D110: =IF(ISNUMBER(SEARCH($D$3,E110)),MAX($D$4:$D109)+1,0) -> 106 | E110: Olsztyn Główny, kasa nr 03 | F110: 54 1140 1010 4167 0000 0054 4003 | G110: Olsztyn Główny | H110: K-03 | I110: 3 | J110: Sekcja | K110: 07:00 - 19:00 | N110: wybierz kasę z listy | O110: 109 | R110: Łódź Widzew | S110: 2 | T110: Łódź Widzew, kasa nr 02 | U110: 97 1140 1010 4167 0000 0051 5002
C111: =_xlfn.IFNA(VLOOKUP(ROWS($C$5:$C111),D111:E333,2,FALSE),"") -> Olsztyn Główny, kasa nr 04 | D111: =IF(ISNUMBER(SEARCH($D$3,E111)),MAX($D$4:$D110)+1,0) -> 107 | E111: Olsztyn Główny, kasa nr 04 | F111: 27 1140 1010 4167 0000 0054 4004 | G111: Olsztyn Główny | H111: K-04 | I111: 4 | J111: Sekcja | K111: 07:00 - 19:00 | N111: wybierz kasę z listy | O111: 110 | R111: Łódź Widzew | S111: 9 | T111: Łódź Widzew, kasa nr 09 | U111: 52 1140 1010 4167 0000 0054 5009
C112: =_xlfn.IFNA(VLOOKUP(ROWS($C$5:$C112),D112:E334,2,FALSE),"") -> Olsztyn Główny, kasa nr 05 | D112: =IF(ISNUMBER(SEARCH($D$3,E112)),MAX($D$4:$D111)+1,0) -> 108 | E112: Olsztyn Główny, kasa nr 05 | F112: 97 1140 1010 4167 0000 0054 4005 | G112: Olsztyn Główny | H112: K-05 | I112: 5 | J112: Sekcja | K112: 07:00 - 19:00 | N112: wybierz kasę z listy | O112: 111 | R112: Łódź Widzew | S112: 13 | T112: Łódź Widzew, kasa nr 13 | U112: 91 1140 1010 4167 0000 0051 5013
C113: =_xlfn.IFNA(VLOOKUP(ROWS($C$5:$C113),D113:E335,2,FALSE),"") -> Olsztyn Główny, kasa nr 06 | D113: =IF(ISNUMBER(SEARCH($D$3,E113)),MAX($D$4:$D112)+1,0) -> 109 | E113: Olsztyn Główny, kasa nr 06 | F113: 70 1140 1010 4167 0000 0054 4006 | G113: Olsztyn Główny | H113: K-06 | I113: 6 | J113: Sekcja | K113: 07:00 - 19:00 | N113: wybierz kasę z listy | O113: 112 | R113: Łódź Widzew | S113: 14 | T113: Łódź Widzew, kasa nr 14 | U113: 64 1140 1010 4167 0000 0051 5014
C114: =_xlfn.IFNA(VLOOKUP(ROWS($C$5:$C114),D114:E336,2,FALSE),"") -> Olsztyn Główny, kasa nr 07 | D114: =IF(ISNUMBER(SEARCH($D$3,E114)),MAX($D$4:$D113)+1,0) -> 110 | E114: Olsztyn Główny, kasa nr 07 | F114: 43 1140 1010 4167 0000 0054 4007 | G114: Olsztyn Główny | H114: K-07 | I114: 7 | J114: Sekcja | K114: 07:00 - 19:00 | N114: wybierz kasę z listy | O114: 113 | R114: Łódź | S114: 3 | T114: Łódź, kasa nr 03 | U114: 53 1140 1010 4167 0000 0051 5503
C115: =_xlfn.IFNA(VLOOKUP(ROWS($C$5:$C115),D115:E337,2,FALSE),"") -> Olsztyn Zachodni, kasa nr 09 | D115: =IF(ISNUMBER(SEARCH($D$3,E115)),MAX($D$4:$D114)+1,0) -> 111 | E115: Olsztyn Zachodni, kasa nr 09 | F115: 86 1140 1010 4167 0000 0054 4009 | G115: Olsztyn Zachodni | H115: K-09 | I115: 9 | J115: Sekcja | K115: 07:00 - 19:00 | N115: wybierz kasę z listy | O115: 114 | R115: Malbork | S115: 12 | T115: Malbork, kasa nr 12 | U115: 10 1140 1010 4167 0000 0054 1012
C116: =_xlfn.IFNA(VLOOKUP(ROWS($C$5:$C116),D116:E338,2,FALSE),"") -> Opole Gł. , kasa nr 25 | D116: =IF(ISNUMBER(SEARCH($D$3,E116)),MAX($D$4:$D115)+1,0) -> 112 | E116: Opole Gł. , kasa nr 25 | F116: 62 1140 1010 4167 0000 0053 2025 | G116: Opole Gł. | H116: K-25 | I116: 25 | J116: Sekcja | K116: 07:00 - 19:00 | N116: wybierz kasę z listy | O116: 115 | R116: Malbork | S116: 15 | T116: Malbork, kasa nr 15 | U116: 26 1140 1010 4167 0000 0054 1015
C117: =_xlfn.IFNA(VLOOKUP(ROWS($C$5:$C117),D117:E339,2,FALSE),"") -> Opole Gł. , kasa nr 26 | D117: =IF(ISNUMBER(SEARCH($D$3,E117)),MAX($D$4:$D116)+1,0) -> 113 | E117: Opole Gł. , kasa nr 26 | F117: 35 1140 1010 4167 0000 0053 2026 | G117: Opole Gł. | H117: K-26 | I117: 26 | J117: Sekcja | K117: 07:00 - 19:00 | N117: wybierz kasę z listy | O117: 116 | R117: Nowy Sącz | S117: 28 | T117: Nowy Sącz, kasa nr 28 | U117: 64 1140 1010 4167 0000 0052 1028
C118: =_xlfn.IFNA(VLOOKUP(ROWS($C$5:$C118),D118:E340,2,FALSE),"") -> Opole Gł. , kasa nr 27 | D118: =IF(ISNUMBER(SEARCH($D$3,E118)),MAX($D$4:$D117)+1,0) -> 114 | E118: Opole Gł. , kasa nr 27 | F118: 08 1140 1010 4167 0000 0053 2027 | G118: Opole Gł. | H118: K-27 | I118: 27 | J118: Sekcja | K118: 07:00 - 19:00 | N118: wybierz kasę z listy | O118: 117 | R118: Nowy Targ | S118: 29 | T118: Nowy Targ, kasa nr 29 | U118: 37 1140 1010 4167 0000 0052 1029
C119: =_xlfn.IFNA(VLOOKUP(ROWS($C$5:$C119),D119:E341,2,FALSE),"") -> Piła Główna, kasa nr 12 | D119: =IF(ISNUMBER(SEARCH($D$3,E119)),MAX($D$4:$D118)+1,0) -> 115 | E119: Piła Główna, kasa nr 12 | F119: 59 1140 1010 4167 0000 0053 1012 | G119: Piła Główna | H119: K-12 | I119: 12 | J119: Sekcja | K119: 07:00 - 19:00 | N119: wybierz kasę z listy | O119: 118 | R119: Olsztyn Główny - kasa konduktorska | S119: 05 | T119: Olsztyn Główny - kasa konduktorska, kasa nr 05 | U119: 80 1140 1010 4167 0000 0054 4505
C120: =_xlfn.IFNA(VLOOKUP(ROWS($C$5:$C120),D120:E342,2,FALSE),"") -> Piotrków Tryb., kasa nr 05 | D120: =IF(ISNUMBER(SEARCH($D$3,E120)),MAX($D$4:$D119)+1,0) -> 116 | E120: Piotrków Tryb., kasa nr 05 | F120: 16 1140 1010 4167 0000 0051 5005 | G120: Piotrków Tryb. | H120: K-05 | I120: 5 | J120: Sekcja | K120: 07:00 - 19:00 | N120: wybierz kasę z listy | O120: 119 | R120: Olsztyn Główny | S120: 3 | T120: Olsztyn Główny, kasa nr 03 | U120: 54 1140 1010 4167 0000 0054 4003
C121: =_xlfn.IFNA(VLOOKUP(ROWS($C$5:$C121),D121:E343,2,FALSE),"") -> Przemyśl Gł., kasa nr 05 | D121: =IF(ISNUMBER(SEARCH($D$3,E121)),MAX($D$4:$D120)+1,0) -> 117 | E121: Przemyśl Gł., kasa nr 05 | F121: 35 1140 1010 4167 0000 0052 3005 | G121: Przemyśl Gł. | H121: K-05 | I121: 5 | J121: Sekcja Handlowa w Przemyślu | K121: 06:00 - 18:00 | L121: Malgorzata.Brzezawska@intercity.pl | N121: 260 | O121: 120 | R121: Olsztyn Główny | S121: 4 | T121: Olsztyn Główny, kasa nr 04 | U121: 27 1140 1010 4167 0000 0054 4004
C122: =_xlfn.IFNA(VLOOKUP(ROWS($C$5:$C122),D122:E344,2,FALSE),"") -> Przemyśl Gł., kasa nr 06 | D122: =IF(ISNUMBER(SEARCH($D$3,E122)),MAX($D$4:$D121)+1,0) -> 118 | E122: Przemyśl Gł., kasa nr 06 | F122: 08 1140 1010 4167 0000 0052 3006 | G122: Przemyśl Gł. | H122: K-06 | I122: 6 | J122: Sekcja Handlowa w Przemyślu | K122: 06:00 - 18:00 | L122: Malgorzata.Brzezawska@intercity.pl | N122: 138 | O122: 121 | R122: Olsztyn Główny | S122: 5 | T122: Olsztyn Główny, kasa nr 05 | U122: 97 1140 1010 4167 0000 0054 4005
C123: =_xlfn.IFNA(VLOOKUP(ROWS($C$5:$C123),D123:E345,2,FALSE),"") -> Przemyśl Gł., kasa nr 11 | D123: =IF(ISNUMBER(SEARCH($D$3,E123)),MAX($D$4:$D122)+1,0) -> 119 | E123: Przemyśl Gł., kasa nr 11 | F123: 67 1140 1010 4167 0000 0052 3011 | G123: Przemyśl Gł. | H123: K-11 | I123: 11 | J123: Sekcja Handlowa w Przemyślu | K123: 07:00 - 19:00 | L123: Malgorzata.Brzezawska@intercity.pl | N123: 139 | O123: 122 | R123: Olsztyn Główny | S123: 6 | T123: Olsztyn Główny, kasa nr 06 | U123: 70 1140 1010 4167 0000 0054 4006
C124: =_xlfn.IFNA(VLOOKUP(ROWS($C$5:$C124),D124:E346,2,FALSE),"") -> Przeworsk, kasa nr 13 | D124: =IF(ISNUMBER(SEARCH($D$3,E124)),MAX($D$4:$D123)+1,0) -> 120 | E124: Przeworsk, kasa nr 13 | F124: 13 1140 1010 4167 0000 0052 3013 | G124: Przeworsk | H124: K-13 | I124: 13 | K124: 07:00 - 19:00 | N124: wybierz kasę z listy | O124: 123 | R124: Olsztyn Główny | S124: 7 | T124: Olsztyn Główny, kasa nr 07 | U124: 43 1140 1010 4167 0000 0054 4007
C125: =_xlfn.IFNA(VLOOKUP(ROWS($C$5:$C125),D125:E347,2,FALSE),"") -> Puławy, kasa nr 05 | D125: 0 | E125: Pszczyna , kasa nr 49 | F125: 64 1140 1010 4167 0000 0004 5049 | G125: Pszczyna | H125: K-49 | I125: 49 | J125: Sekcja Handlowa w Katowicach | K125: 07:00 - 19:00 | L125: olga.glab@intercity.pl;anna.jablonska@intercity.pl;zdzislawa.rosochacka@intercity.pl; | N125: wybierz kasę z listy | O125: 124 | R125: Olsztyn Zachodni | S125: 9 | T125: Olsztyn Zachodni, kasa nr 09 | U125: 86 1140 1010 4167 0000 0054 4009
C126: =_xlfn.IFNA(VLOOKUP(ROWS($C$5:$C126),D126:E348,2,FALSE),"") -> Radom, kasa nr 34 | D126: =IF(ISNUMBER(SEARCH($D$3,E126)),MAX($D$4:$D125)+1,0) -> 121 | E126: Puławy, kasa nr 05 | F126: 63 1140 1010 4167 0000 0054 5005 | G126: Puławy | H126: K-05 | I126: 5 | J126: Sekcja | K126: 07:00 - 19:00 | N126: wybierz kasę z listy | O126: 125 | R126: Opole Gł. | S126: 25 | T126: Opole Gł. , kasa nr 25 | U126: 62 1140 1010 4167 0000 0053 2025
C127: =_xlfn.IFNA(VLOOKUP(ROWS($C$5:$C127),D127:E349,2,FALSE),"") -> Radom, kasa nr 67 | D127: =IF(ISNUMBER(SEARCH($D$3,E127)),MAX($D$4:$D126)+1,0) -> 122 | E127: Radom, kasa nr 34 | F127: 48 1140 1010 4167 0000 0051 1034 | G127: Radom | H127: K-34 | I127: 34 | J127: Sekcja | K127: 07:00 - 19:00 | N127: wybierz kasę z listy | O127: 126 | R127: Opole Gł. | S127: 26 | T127: Opole Gł. , kasa nr 26 | U127: 35 1140 1010 4167 0000 0053 2026
C128: =_xlfn.IFNA(VLOOKUP(ROWS($C$5:$C128),D128:E350,2,FALSE),"") -> Rybnik, kasa nr 50 | D128: =IF(ISNUMBER(SEARCH($D$3,E128)),MAX($D$4:$D127)+1,0) -> 123 | E128: Radom, kasa nr 67 | F128: 30 1140 1010 4167 0000 0051 1067 | G128: Radom | H128: K-67 | I128: 67 | J128: Sekcja | K128: 07:00 - 19:00 | N128: wybierz kasę z listy | O128: 127 | R128: Opole Gł. | S128: 27 | T128: Opole Gł. , kasa nr 27 | U128: 08 1140 1010 4167 0000 0053 2027
C129: =_xlfn.IFNA(VLOOKUP(ROWS($C$5:$C129),D129:E351,2,FALSE),"") -> Rzepin, kasa nr 18 | D129: =IF(ISNUMBER(SEARCH($D$3,E129)),MAX($D$4:$D128)+1,0) -> 124 | E129: Rybnik, kasa nr 50 | F129: 18 1140 1010 4167 0000 0052 2050 | G129: Rybnik | H129: K-50 | I129: 50 | J129: Sekcja Handlowa w Katowicach | K129: 07:15 - 19:15 | L129: olga.glab@intercity.pl;anna.jablonska@intercity.pl;zdzislawa.rosochacka@intercity.pl; | N129: 147 | O129: 128 | R129: Piła Główna | S129: 12 | T129: Piła Główna, kasa nr 12 | U129: 59 1140 1010 4167 0000 0053 1012
C130: =_xlfn.IFNA(VLOOKUP(ROWS($C$5:$C130),D130:E352,2,FALSE),"") -> Rzeszów, kasa nr 03 | D130: =IF(ISNUMBER(SEARCH($D$3,E130)),MAX($D$4:$D129)+1,0) -> 125 | E130: Rzepin, kasa nr 18 | F130: 91 1140 1010 4167 0000 0053 1018 | G130: Rzepin | H130: K-18 | I130: 18 | J130: Sekcja | K130: 07:00 - 19:00 | N130: wybierz kasę z listy | O130: 129 | R130: Piotrków Tryb. | S130: 5 | T130: Piotrków Tryb., kasa nr 05 | U130: 16 1140 1010 4167 0000 0051 5005
C131: =_xlfn.IFNA(VLOOKUP(ROWS($C$5:$C131),D131:E353,2,FALSE),"") -> Rzeszów, kasa nr 04 | D131: =IF(ISNUMBER(SEARCH($D$3,E131)),MAX($D$4:$D130)+1,0) -> 126 | E131: Rzeszów, kasa nr 03 | F131: 89 1140 1010 4167 0000 0052 3003 | G131: Rzeszów | H131: K-03 | I131: 3 | K131: 07:00 - 19:00 | N131: wybierz kasę z listy | O131: 130 | R131: Przemyśl - kasa konduktorska | S131: 6 | T131: Przemyśl - kasa konduktorska, kasa nr 06 | U131: 88 1140 1010 4167 0000 0052 3506
C132: =_xlfn.IFNA(VLOOKUP(ROWS($C$5:$C132),D132:E354,2,FALSE),"") -> Rzeszów, kasa nr 09 | D132: =IF(ISNUMBER(SEARCH($D$3,E132)),MAX($D$4:$D131)+1,0) -> 127 | E132: Rzeszów, kasa nr 04 | F132: 62 1140 1010 4167 0000 0052 3004 | G132: Rzeszów | H132: =IF(VALUE(I132)<10,"K-"&"0"&I132,"K-"&I132) -> K-04 | I132: 4 | K132: 07:00 - 19:00 | N132: wybierz kasę z listy | O132: 131 | R132: Przemyśl | S132: 05 | T132: Przemyśl, kasa nr 05 | U132: 35 1140 1010 4167 0000 0052 3005
C133: =_xlfn.IFNA(VLOOKUP(ROWS($C$5:$C133),D133:E355,2,FALSE),"") -> Rzeszów, kasa nr 10 | D133: =IF(ISNUMBER(SEARCH($D$3,E133)),MAX($D$4:$D132)+1,0) -> 128 | E133: Rzeszów, kasa nr 09 | F133: 24 1140 1010 4167 0000 0052 3009 | G133: Rzeszów | H133: K-09 | I133: 9 | J133: Sekcja Handlowa w Przemyślu | K133: 06:00 - 14:00 | L133: Malgorzata.Brzezawska@intercity.pl | N133: 145 | O133: 132 | R133: Przemyśl | S133: 06 | T133: Przemyśl, kasa nr 06 | U133: 08 1140 1010 4167 0000 0052 3006
C134: =_xlfn.IFNA(VLOOKUP(ROWS($C$5:$C134),D134:E356,2,FALSE),"") -> Skarżysko Kamienna, kasa nr 15 | D134: =IF(ISNUMBER(SEARCH($D$3,E134)),MAX($D$4:$D133)+1,0) -> 129 | E134: Rzeszów, kasa nr 10 | F134: 94 1140 1010 4167 0000 0052 3010 | G134: Rzeszów | H134: K-10 | I134: 10 | J134: Sekcja Handlowa w Przemyślu | K134: 07:00 - 19:00 | L134: Malgorzata.Brzezawska@intercity.pl | N134: 146 | O134: 133 | R134: Przemyśl | S134: 11 | T134: Przemyśl, kasa nr 11 | U134: 67 1140 1010 4167 0000 0052 3011
C135: =_xlfn.IFNA(VLOOKUP(ROWS($C$5:$C135),D135:E357,2,FALSE),"") -> Skarżysko Kamienna, kasa nr 16 | D135: =IF(ISNUMBER(SEARCH($D$3,E135)),MAX($D$4:$D134)+1,0) -> 130 | E135: Skarżysko Kamienna, kasa nr 15 | F135: 27 1140 1010 4167 0000 0052 1015 | G135: Skarżysko Kamienna | H135: K-15 | I135: 15 | J135: Sekcja Handlowa w Krakowie | K135: 06:00 - 18:00 | N135: 152 | O135: 134 | R135: Przeworsk | S135: 13 | T135: Przeworsk, kasa nr 13 | U135: 13 1140 1010 4167 0000 0052 3013
C136: =_xlfn.IFNA(VLOOKUP(ROWS($C$5:$C136),D136:E358,2,FALSE),"") -> Skierniewice, kasa nr 03 | D136: =IF(ISNUMBER(SEARCH($D$3,E136)),MAX($D$4:$D135)+1,0) -> 131 | E136: Skarżysko Kamienna, kasa nr 16 | F136: 82 1140 1010 4167 0000 0004 5016 | G136: Skarżysko Kamienna | H136: K-16 | I136: 16 | J136: Sekcja Handlowa w Krakowie | K136: 08:15 - 20:15 | N136: 151 | O136: 135 | R136: Pszczyna | S136: 49 | T136: Pszczyna , kasa nr 49 | U136: 64 1140 1010 4167 0000 0004 5049
C137: =_xlfn.IFNA(VLOOKUP(ROWS($C$5:$C137),D137:E359,2,FALSE),"") -> Skierniewice, kasa nr 10 | D137: =IF(ISNUMBER(SEARCH($D$3,E137)),MAX($D$4:$D136)+1,0) -> 132 | E137: Skierniewice, kasa nr 03 | F137: 70 1140 1010 4167 0000 0051 5003 | G137: Skierniewice | H137: K-03 | I137: 3 | J137: Sekcja | K137: 07:00 - 19:00 | N137: wybierz kasę z listy | O137: 136 | R137: Puławy | S137: 05 | T137: Puławy, kasa nr 05 | U137: 63 1140 1010 4167 0000 0054 5005
C138: =_xlfn.IFNA(VLOOKUP(ROWS($C$5:$C138),D138:E360,2,FALSE),"") -> Skierniewice, kasa nr 11 | D138: =IF(ISNUMBER(SEARCH($D$3,E138)),MAX($D$4:$D137)+1,0) -> 133 | E138: Skierniewice, kasa nr 10 | F138: 75 1140 1010 4167 0000 0051 5010 | G138: Skierniewice | H138: K-10 | I138: 10 | J138: Sekcja | K138: 07:00 - 19:00 | N138: wybierz kasę z listy | O138: 137 | R138: Radom | S138: 34 | T138: Radom, kasa nr 34 | U138: 48 1140 1010 4167 0000 0051 1034
C139: =_xlfn.IFNA(VLOOKUP(ROWS($C$5:$C139),D139:E361,2,FALSE),"") -> Sławno, kasa nr 39 | D139: =IF(ISNUMBER(SEARCH($D$3,E139)),MAX($D$4:$D138)+1,0) -> 134 | E139: Skierniewice, kasa nr 11 | F139: 48 1140 1010 4167 0000 0051 5011 | G139: Skierniewice | H139: K-11 | I139: 11 | J139: Sekcja | K139: 07:00 - 19:00 | N139: wybierz kasę z listy | O139: 138 | R139: Radom | S139: 67 | T139: Radom, kasa nr 67 | U139: 30 1140 1010 4167 0000 0051 1067
C140: =_xlfn.IFNA(VLOOKUP(ROWS($C$5:$C140),D140:E362,2,FALSE),"") -> Słupsk, kasa nr 14 | D140: =IF(ISNUMBER(SEARCH($D$3,E140)),MAX($D$4:$D139)+1,0) -> 135 | E140: Sławno, kasa nr 39 | F140: 57 1140 1010 4167 0000 0054 1039 | G140: Sławno | H140: K-39 | I140: 39 | J140: Sekcja | K140: 07:00 - 19:00 | N140: wybierz kasę z listy | O140: 139 | R140: Rybnik | S140: 50 | T140: Rybnik, kasa nr 50 | U140: 18 1140 1010 4167 0000 0052 2050
C141: =_xlfn.IFNA(VLOOKUP(ROWS($C$5:$C141),D141:E363,2,FALSE),"") -> Słupsk, kasa nr 23 | D141: =IF(ISNUMBER(SEARCH($D$3,E141)),MAX($D$4:$D140)+1,0) -> 136 | E141: Słupsk, kasa nr 14 | F141: 53 1140 1010 4167 0000 0054 1014 | G141: Słupsk | H141: K-14 | I141: 14 | J141: Sekcja | K141: 07:00 - 19:00 | N141: wybierz kasę z listy | O141: 140 | R141: Rzepin | S141: 18 | T141: Rzepin, kasa nr 18 | U141: 91 1140 1010 4167 0000 0053 1018
C142: =_xlfn.IFNA(VLOOKUP(ROWS($C$5:$C142),D142:E364,2,FALSE),"") -> Sopot, kasa nr 27 | D142: =IF(ISNUMBER(SEARCH($D$3,E142)),MAX($D$4:$D141)+1,0) -> 137 | E142: Słupsk, kasa nr 23 | F142: 04 1140 1010 4167 0000 0054 1023 | G142: Słupsk | H142: K-23 | I142: 23 | J142: Sekcja | K142: 07:00 - 19:00 | N142: wybierz kasę z listy | O142: 141 | R142: Rzeszów - kasa konduktorska | S142: 05 | T142: Rzeszów - kasa konduktorska, kasa nr 05 | U142: 18 1140 1010 4167 0000 0052 3505
C143: =_xlfn.IFNA(VLOOKUP(ROWS($C$5:$C143),D143:E365,2,FALSE),"") -> Sopot, kasa nr 28 | D143: =IF(ISNUMBER(SEARCH($D$3,E143)),MAX($D$4:$D142)+1,0) -> 138 | E143: Sopot, kasa nr 27 | F143: 90 1140 1010 4167 0000 0054 1027 | G143: Sopot | H143: K-27 | I143: 27 | J143: Sekcja | K143: 07:00 - 19:00 | N143: wybierz kasę z listy | O143: 142 | R143: Rzeszów | S143: 03 | T143: Rzeszów, kasa nr 03 | U143: 89 1140 1010 4167 0000 0052 3003
C144: =_xlfn.IFNA(VLOOKUP(ROWS($C$5:$C144),D144:E366,2,FALSE),"") -> Sosnowiec, kasa nr 08 | D144: =IF(ISNUMBER(SEARCH($D$3,E144)),MAX($D$4:$D143)+1,0) -> 139 | E144: Sopot, kasa nr 28 | F144: 63 1140 1010 4167 0000 0054 1028 | G144: Sopot | H144: K-28 | I144: 28 | J144: Sekcja | K144: 07:00 - 19:00 | N144: wybierz kasę z listy | O144: 143 | R144: Rzeszów | S144: 04 | T144: Rzeszów, kasa nr 04 | U144: 62 1140 1010 4167 0000 0052 3004
C145: =_xlfn.IFNA(VLOOKUP(ROWS($C$5:$C145),D145:E367,2,FALSE),"") -> Sosnowiec, kasa nr 09 | D145: =IF(ISNUMBER(SEARCH($D$3,E145)),MAX($D$4:$D144)+1,0) -> 140 | E145: Sosnowiec, kasa nr 08 | F145: 85 1140 1010 4167 0000 0052 2008 | G145: Sosnowiec | H145: K-08 | I145: 8 | J145: Sekcja Handlowa w Katowicach | K145: 07:00 - 19:00 | L145: olga.glab@intercity.pl;anna.jablonska@intercity.pl;zdzislawa.rosochacka@intercity.pl; | N145: 161 | O145: 144 | R145: Rzeszów | S145: 09 | T145: Rzeszów, kasa nr 09 | U145: 24 1140 1010 4167 0000 0052 3009
C146: =_xlfn.IFNA(VLOOKUP(ROWS($C$5:$C146),D146:E368,2,FALSE),"") -> Sosnowiec, kasa nr 47 | D146: =IF(ISNUMBER(SEARCH($D$3,E146)),MAX($D$4:$D145)+1,0) -> 141 | E146: Sosnowiec, kasa nr 09 | F146: 58 1140 1010 4167 0000 0052 2009 | G146: Sosnowiec | H146: K-09 | I146: 9 | J146: Sekcja Handlowa w Katowicach | K146: 05:30 - 13:30 | L146: olga.glab@intercity.pl;anna.jablonska@intercity.pl;zdzislawa.rosochacka@intercity.pl; | N146: 160 | O146: 145 | R146: Rzeszów | S146: 10 | T146: Rzeszów, kasa nr 10 | U146: 94 1140 1010 4167 0000 0052 3010
C147: =_xlfn.IFNA(VLOOKUP(ROWS($C$5:$C147),D147:E369,2,FALSE),"") -> Stargard Szczeciński, kasa nr 05 | D147: =IF(ISNUMBER(SEARCH($D$3,E147)),MAX($D$4:$D146)+1,0) -> 142 | E147: Sosnowiec, kasa nr 47 | F147: 02 1140 1010 4167 0000 0052 2047 | G147: Sosnowiec | H147: K-47 | I147: 47 | J147: Sekcja Handlowa w Katowicach | K147: 07:30 - 19:30 | L147: olga.glab@intercity.pl;anna.jablonska@intercity.pl;zdzislawa.rosochacka@intercity.pl; | N147: 162 | O147: 146 | R147: Skarżysko Kamienna - kasa konduktorska | S147: 3 | T147: Skarżysko Kamienna - kasa konduktorska, kasa nr 03 | U147: 43 1140 1010 4167 0000 0052 1503
C148: =_xlfn.IFNA(VLOOKUP(ROWS($C$5:$C148),D148:E370,2,FALSE),"") -> Szczecin Dąbie, kasa nr 13 | D148: =IF(ISNUMBER(SEARCH($D$3,E148)),MAX($D$4:$D147)+1,0) -> 143 | E148: Stargard Szczeciński, kasa nr 05 | F148: 68 1140 1010 4167 0000 0054 2005 | G148: Stargard Szczeciński | H148: K-05 | I148: 5 | J148: Sekcja | K148: 07:00 - 19:00 | N148: wybierz kasę z listy | O148: 147 | R148: Skarżysko Kamienna | S148: 15 | T148: Skarżysko Kamienna, kasa nr 15 | U148: 27 1140 1010 4167 0000 0052 1015
C149: =_xlfn.IFNA(VLOOKUP(ROWS($C$5:$C149),D149:E371,2,FALSE),"") -> Szczecin Dąbie, kasa nr 28 | D149: =IF(ISNUMBER(SEARCH($D$3,E149)),MAX($D$4:$D148)+1,0) -> 144 | E149: Szczecin Dąbie, kasa nr 13 | F149: 46 1140 1010 4167 0000 0054 2013 | G149: Szczecin Dąbie | H149: K-13 | I149: 13 | J149: Sekcja | K149: 07:00 - 19:00 | N149: wybierz kasę z listy | O149: 148 | R149: Skarżysko Kamienna | S149: 16 | T149: Skarżysko Kamienna, kasa nr 16 | U149: 82 1140 1010 4167 0000 0004 5016
C150: =_xlfn.IFNA(VLOOKUP(ROWS($C$5:$C150),D150:E372,2,FALSE),"") -> Szczecin Główny, kasa nr 01 | D150: =IF(ISNUMBER(SEARCH($D$3,E150)),MAX($D$4:$D149)+1,0) -> 145 | E150: Szczecin Dąbie, kasa nr 28 | F150: 29 1140 1010 4167 0000 0054 2028 | G150: Szczecin Dąbie | H150: K-28 | I150: 28 | J150: Sekcja | K150: 07:00 - 19:00 | N150: wybierz kasę z listy | O150: 149 | R150: Skierniewice | S150: 3 | T150: Skierniewice, kasa nr 03 | U150: 70 1140 1010 4167 0000 0051 5003
C151: =_xlfn.IFNA(VLOOKUP(ROWS($C$5:$C151),D151:E376,2,FALSE),"") -> Szczecin Główny, kasa nr 02 | D151: =IF(ISNUMBER(SEARCH($D$3,E151)),MAX($D$4:$D150)+1,0) -> 146 | E151: Szczecin Główny, kasa nr 01 | F151: 79 1140 1010 4167 0000 0054 2001 | G151: Szczecin Główny | H151: K-01 | I151: 1 | J151: Sekcja | K151: 07:00 - 19:00 | N151: wybierz kasę z listy | O151: 153 | R151: Słupsk - kasa konduktorska | S151: 2 | T151: Słupsk - kasa konduktorska, kasa nr 02 | U151: 69 1140 1010 4167 0000 0054 1502
C152: =_xlfn.IFNA(VLOOKUP(ROWS($C$5:$C152),D152:E377,2,FALSE),"") -> Szczecin Główny, kasa nr 03 | D152: =IF(ISNUMBER(SEARCH($D$3,E152)),MAX($D$4:$D151)+1,0) -> 147 | E152: Szczecin Główny, kasa nr 02 | F152: 52 1140 1010 4167 0000 0054 2002 | G152: Szczecin Główny | H152: K-02 | I152: 2 | J152: Sekcja | K152: 07:00 - 19:00 | N152: wybierz kasę z listy | O152: 154 | R152: Słupsk | S152: 14 | T152: Słupsk, kasa nr 14 | U152: 53 1140 1010 4167 0000 0054 1014
C153: =_xlfn.IFNA(VLOOKUP(ROWS($C$5:$C153),D153:E378,2,FALSE),"") -> Szczecin Główny, kasa nr 04 | D153: =IF(ISNUMBER(SEARCH($D$3,E153)),MAX($D$4:$D152)+1,0) -> 148 | E153: Szczecin Główny, kasa nr 03 | F153: 25 1140 1010 4167 0000 0054 2003 | G153: Szczecin Główny | H153: K-03 | I153: 3 | J153: Sekcja | K153: 07:00 - 19:00 | N153: wybierz kasę z listy | O153: 155 | R153: Słupsk | S153: 23 | T153: Słupsk, kasa nr 23 | U153: 04 1140 1010 4167 0000 0054 1023
C154: =_xlfn.IFNA(VLOOKUP(ROWS($C$5:$C154),D154:E379,2,FALSE),"") -> Szczecin Główny, kasa nr 17 | D154: =IF(ISNUMBER(SEARCH($D$3,E154)),MAX($D$4:$D153)+1,0) -> 149 | E154: Szczecin Główny, kasa nr 04 | F154: 95 1140 1010 4167 0000 0054 2004 | G154: Szczecin Główny | H154: K-04 | I154: 4 | J154: Sekcja | K154: 07:00 - 19:00 | N154: wybierz kasę z listy | O154: 156 | R154: Sopot | S154: 27 | T154: Sopot, kasa nr 27 | U154: 90 1140 1010 4167 0000 0054 1027
C155: =_xlfn.IFNA(VLOOKUP(ROWS($C$5:$C155),D155:E380,2,FALSE),"") -> Szczecin Główny, kasa nr 18 | D155: =IF(ISNUMBER(SEARCH($D$3,E155)),MAX($D$4:$D154)+1,0) -> 150 | E155: Szczecin Główny, kasa nr 17 | F155: 35 1140 1010 4167 0000 0054 2017 | G155: Szczecin Główny | H155: K-17 | I155: 17 | J155: Sekcja | K155: 07:00 - 19:00 | N155: wybierz kasę z listy | O155: 157 | R155: Sopot | S155: 28 | T155: Sopot, kasa nr 28 | U155: 63 1140 1010 4167 0000 0054 1028
C156: =_xlfn.IFNA(VLOOKUP(ROWS($C$5:$C156),D156:E381,2,FALSE),"") -> Świebodzin, kasa nr 14 | D156: =IF(ISNUMBER(SEARCH($D$3,E156)),MAX($D$4:$D155)+1,0) -> 151 | E156: Szczecin Główny, kasa nr 18 | F156: 08 1140 1010 4167 0000 0054 2018 | G156: Szczecin Główny | H156: K-18 | I156: 18 | J156: Sekcja | K156: 07:00 - 19:00 | N156: wybierz kasę z listy | O156: 158 | R156: Sosnowiec | S156: 8 | T156: Sosnowiec, kasa nr 08 | U156: 85 1140 1010 4167 0000 0052 2008
C157: =_xlfn.IFNA(VLOOKUP(ROWS($C$5:$C157),D157:E382,2,FALSE),"") -> Świnoujście, kasa nr 07 | D157: =IF(ISNUMBER(SEARCH($D$3,E157)),MAX($D$4:$D156)+1,0) -> 152 | E157: Świebodzin, kasa nr 14 | F157: 05 1140 1010 4167 0000 0053 1014 | G157: Świebodzin | H157: K-14 | I157: 14 | J157: Sekcja | K157: 07:00 - 19:00 | N157: wybierz kasę z listy | O157: 159 | R157: Sosnowiec | S157: 9 | T157: Sosnowiec, kasa nr 09 | U157: 58 1140 1010 4167 0000 0052 2009
C158: =_xlfn.IFNA(VLOOKUP(ROWS($C$5:$C158),D158:E383,2,FALSE),"") -> Tarnów, kasa nr 02 | D158: =IF(ISNUMBER(SEARCH($D$3,E158)),MAX($D$4:$D157)+1,0) -> 153 | E158: Świnoujście, kasa nr 07 | F158: 14 1140 1010 4167 0000 0054 2007 | G158: Świnoujście | H158: K-07 | I158: 7 | J158: Sekcja | K158: 07:00 - 19:00 | N158: wybierz kasę z listy | O158: 160 | R158: Sosnowiec | S158: 46 | T158: Sosnowiec, kasa nr 46 | U158: 29 1140 1010 4167 0000 0052 2046
C159: =_xlfn.IFNA(VLOOKUP(ROWS($C$5:$C159),D159:E384,2,FALSE),"") -> Tarnów, kasa nr 22 | D159: =IF(ISNUMBER(SEARCH($D$3,E159)),MAX($D$4:$D158)+1,0) -> 154 | E159: Tarnów, kasa nr 02 | F159: 87 1140 1010 4167 0000 0052 1002 | G159: Tarnów | H159: K-02 | I159: 2 | J159: Sekcja Handlowa w Krakowie | K159: 07:00 - 19:00 | N159: wybierz kasę z listy | O159: 161 | R159: Sosnowiec | S159: 47 | T159: Sosnowiec, kasa nr 47 | U159: 02 1140 1010 4167 0000 0052 2047
C160: =_xlfn.IFNA(VLOOKUP(ROWS($C$5:$C160),D160:E385,2,FALSE),"") -> Tczew, kasa nr 03 | D160: =IF(ISNUMBER(SEARCH($D$3,E160)),MAX($D$4:$D159)+1,0) -> 155 | E160: Tarnów, kasa nr 22 | F160: 32 1140 1010 4167 0000 0052 1022 | G160: Tarnów | H160: K-22 | I160: 22 | J160: Sekcja Handlowa w Krakowie | K160: 07:00 - 19:00 | N160: wybierz kasę z listy | O160: 162 | Q160: Sosnowiec, kasa nr 46 | R160: Stargard Szczeciński | S160: 5 | T160: Stargard Szczeciński, kasa nr 05 | U160: 68 1140 1010 4167 0000 0054 2005
C161: =_xlfn.IFNA(VLOOKUP(ROWS($C$5:$C161),D161:E386,2,FALSE),"") -> Tczew, kasa nr 11 | D161: =IF(ISNUMBER(SEARCH($D$3,E161)),MAX($D$4:$D160)+1,0) -> 156 | E161: Tczew, kasa nr 03 | F161: 59 1140 1010 4167 0000 0054 1003 | G161: Tczew | H161: K-03 | I161: 3 | J161: Sekcja | K161: 07:00 - 19:00 | N161: wybierz kasę z listy | O161: 163 | R161: Szczecin Dąbie | S161: 13 | T161: Szczecin Dąbie, kasa nr 13 | U161: 46 1140 1010 4167 0000 0054 2013
C162: =_xlfn.IFNA(VLOOKUP(ROWS($C$5:$C162),D162:E387,2,FALSE),"") -> Teraspol , kasa nr 06 | D162: =IF(ISNUMBER(SEARCH($D$3,E162)),MAX($D$4:$D161)+1,0) -> 157 | E162: Tczew, kasa nr 11 | F162: 37 1140 1010 4167 0000 0054 1011 | G162: Tczew | H162: K-11 | I162: 11 | J162: Sekcja | K162: 07:00 - 19:00 | N162: wybierz kasę z listy | O162: 164 | R162: Szczecin Dąbie | S162: 28 | T162: Szczecin Dąbie, kasa nr 28 | U162: 29 1140 1010 4167 0000 0054 2028
C163: =_xlfn.IFNA(VLOOKUP(ROWS($C$5:$C163),D163:E388,2,FALSE),"") -> Terespol, kasa nr 05 | D163: =IF(ISNUMBER(SEARCH($D$3,E163)),MAX($D$4:$D162)+1,0) -> 158 | E163: Teraspol , kasa nr 06 | F163: 18 1140 1010 4167 0000 0051 7006 | G163: Teraspol | H163: K-06 | I163: 6 | J163: Sekcja | K163: 07:00 - 19:00 | N163: wybierz kasę z listy | O163: 165 | R163: Szczecin Główny - Centrum Obsługi Klienta | S163: COK 14 | T163: Szczecin Główny - Centrum Obsługi Klienta, kasa nr COK 14 | U163: 19 1140 1010 4167 0000 0054 2014
C164: =_xlfn.IFNA(VLOOKUP(ROWS($C$5:$C164),D164:E389,2,FALSE),"") -> Toruń Gł, kasa nr 13 | D164: =IF(ISNUMBER(SEARCH($D$3,E164)),MAX($D$4:$D163)+1,0) -> 159 | E164: Terespol, kasa nr 05 | F164: 79 1140 1010 4167 0000 0051 6005 | G164: Terespol | H164: K-05 | I164: 5 | J164: Sekcja | K164: 07:00 - 19:00 | N164: wybierz kasę z listy | O164: 166 | R164: Szczecin Główny - Centrum Obsługi Klienta | S164: COK 15 | T164: Szczecin Główny - Centrum Obsługi Klienta, kasa nr COK 15 | U164: 89 1140 1010 4167 0000 0054 2015
C165: =_xlfn.IFNA(VLOOKUP(ROWS($C$5:$C165),D165:E390,2,FALSE),"") -> Toruń Gł, kasa nr 14 | D165: =IF(ISNUMBER(SEARCH($D$3,E165)),MAX($D$4:$D164)+1,0) -> 160 | E165: Toruń Gł, kasa nr 13 | F165: 12 1140 1010 4167 0000 0054 3013 | G165: Toruń Gł | H165: K-13 | I165: 13 | J165: Sekcja | K165: 07:00 - 19:00 | N165: wybierz kasę z listy | O165: 167 | R165: Szczecin Główny - Centrum Obsługi Klienta | S165: COK 16 | T165: Szczecin Główny - Centrum Obsługi Klienta, kasa nr COK 16 | U165: 62 1140 1010 4167 0000 0054 2016
C166: =_xlfn.IFNA(VLOOKUP(ROWS($C$5:$C166),D166:E391,2,FALSE),"") -> Toruń Gł, kasa nr 15 | D166: =IF(ISNUMBER(SEARCH($D$3,E166)),MAX($D$4:$D165)+1,0) -> 161 | E166: Toruń Gł, kasa nr 14 | F166: 82 1140 1010 4167 0000 0054 3014 | G166: Toruń Gł | H166: K-14 | I166: 14 | J166: Sekcja | K166: 07:00 - 19:00 | N166: wybierz kasę z listy | O166: 168 | R166: Szczecin Główny - kasa konduktorska | S166: 14 | T166: Szczecin Główny - kasa konduktorska, kasa nr 14 | U166: 02 1140 1010 4167 0000 0054 2514
C167: =_xlfn.IFNA(VLOOKUP(ROWS($C$5:$C167),D167:E392,2,FALSE),"") -> Tychy, kasa nr 51 | D167: =IF(ISNUMBER(SEARCH($D$3,E167)),MAX($D$4:$D166)+1,0) -> 162 | E167: Toruń Gł, kasa nr 15 | F167: 55 1140 1010 4167 0000 0054 3015 | G167: Toruń Gł | H167: K-15 | I167: 15 | J167: Sekcja | K167: 07:00 - 19:00 | N167: wybierz kasę z listy | O167: 169 | R167: Szczecin Główny | S167: 1 | T167: Szczecin Główny, kasa nr 01 | U167: 79 1140 1010 4167 0000 0054 2001
C168: =_xlfn.IFNA(VLOOKUP(ROWS($C$5:$C168),D168:E393,2,FALSE),"") -> Ustka, kasa nr 26 | D168: =IF(ISNUMBER(SEARCH($D$3,E168)),MAX($D$4:$D167)+1,0) -> 163 | E168: Tychy, kasa nr 51 | F168: 88 1140 1010 4167 0000 0052 2051 | G168: Tychy | H168: K-51 | I168: 51 | J168: Sekcja Handlowa w Katowicach | K168: 07:50 - 19:50 | L168: olga.glab@intercity.pl;anna.jablonska@intercity.pl;zdzislawa.rosochacka@intercity.pl; | N168: 180 | O168: 170 | R168: Szczecin Główny | S168: 2 | T168: Szczecin Główny, kasa nr 02 | U168: 52 1140 1010 4167 0000 0054 2002
C169: =_xlfn.IFNA(VLOOKUP(ROWS($C$5:$C169),D169:E394,2,FALSE),"") -> Warszawa Senacka, kasa nr 36 | D169: =IF(ISNUMBER(SEARCH($D$3,E169)),MAX($D$4:$D168)+1,0) -> 164 | E169: Ustka, kasa nr 26 | F169: 44 1140 1010 4167 0000 0054 6026 | G169: Ustka | H169: K-26 | I169: 26 | J169: Sekcja | K169: 07:00 - 19:00 | N169: wybierz kasę z listy | O169: 171 | R169: Szczecin Główny | S169: 3 | T169: Szczecin Główny, kasa nr 03 | U169: 25 1140 1010 4167 0000 0054 2003
C170: =_xlfn.IFNA(VLOOKUP(ROWS($C$5:$C170),D170:E395,2,FALSE),"") -> Warszawa Zachodnia , kasa nr 33 | D170: =IF(ISNUMBER(SEARCH($D$3,E170)),MAX($D$4:$D169)+1,0) -> 165 | E170: Warszawa Senacka, kasa nr 36 | F170: 91 1140 1010 4167 0000 0051 1036 | G170: Warszawa Senacka | H170: K-36 | I170: 36 | J170: Sekcja | K170: 07:00 - 19:00 | N170: wybierz kasę z listy | O170: 172 | R170: Szczecin Główny | S170: 4 | T170: Szczecin Główny, kasa nr 04 | U170: 95 1140 1010 4167 0000 0054 2004
C171: =_xlfn.IFNA(VLOOKUP(ROWS($C$5:$C171),D171:E396,2,FALSE),"") -> Warszawa Zachodnia, kasa nr 24 | D171: =IF(ISNUMBER(SEARCH($D$3,E171)),MAX($D$4:$D170)+1,0) -> 166 | E171: Warszawa Zachodnia , kasa nr 33 | F171: 75 1140 1010 4167 0000 0051 1033 | G171: Warszawa Zachodnia | H171: K-33 | I171: 33 | J171: Sekcja | K171: 07:00 - 19:00 | N171: wybierz kasę z listy | O171: 173 | R171: Szczecin Główny | S171: 17 | T171: Szczecin Główny, kasa nr 17 | U171: 35 1140 1010 4167 0000 0054 2017
C172: =_xlfn.IFNA(VLOOKUP(ROWS($C$5:$C172),D172:E399,2,FALSE),"") -> Warszawa Zachodnia, kasa nr 31 | D172: =IF(ISNUMBER(SEARCH($D$3,E172)),MAX($D$4:$D171)+1,0) -> 167 | E172: Warszawa Zachodnia, kasa nr 24 | F172: 27 1140 1010 4167 0000 0051 1024 | G172: Warszawa Zachodnia | H172: K-24 | I172: 24 | J172: Sekcja | K172: 07:00 - 19:00 | N172: wybierz kasę z listy | O172: 176 | R172: Świnoujście | S172: 7 | T172: Świnoujście, kasa nr 07 | U172: 14 1140 1010 4167 0000 0054 2007
C173: =_xlfn.IFNA(VLOOKUP(ROWS($C$5:$C173),D173:E400,2,FALSE),"") -> Warszawa Zachodnia, kasa nr 32 | D173: =IF(ISNUMBER(SEARCH($D$3,E173)),MAX($D$4:$D172)+1,0) -> 168 | E173: Warszawa Zachodnia, kasa nr 31 | F173: 32 1140 1010 4167 0000 0051 1031 | G173: Warszawa Zachodnia | H173: K-31 | I173: 31 | J173: Sekcja | K173: 07:00 - 19:00 | N173: wybierz kasę z listy | O173: 177 | R173: Tarnów | S173: 2 | T173: Tarnów, kasa nr 02 | U173: 87 1140 1010 4167 0000 0052 1002
C174: =_xlfn.IFNA(VLOOKUP(ROWS($C$5:$C174),D174:E401,2,FALSE),"") -> Warszawa Zachodnia, kasa nr 68 | D174: =IF(ISNUMBER(SEARCH($D$3,E174)),MAX($D$4:$D173)+1,0) -> 169 | E174: Warszawa Zachodnia, kasa nr 32 | F174: 05 1140 1010 4167 0000 0051 1032 | G174: Warszawa zachodnia | H174: K-32 | I174: 32 | J174: Sekcja | K174: 07:00 - 19:00 | N174: wybierz kasę z listy | O174: 178 | R174: Tarnów | S174: 22 | T174: Tarnów, kasa nr 22 | U174: 32 1140 1010 4167 0000 0052 1022
C175: =_xlfn.IFNA(VLOOKUP(ROWS($C$5:$C175),D175:E402,2,FALSE),"") -> Warszawa Zachodnia, kasa nr 69 | D175: =IF(ISNUMBER(SEARCH($D$3,E175)),MAX($D$4:$D174)+1,0) -> 170 | E175: Warszawa Zachodnia, kasa nr 68 | F175: 03 1140 1010 4167 0000 0051 1068 | G175: Warszawa Zachodnia | H175: K-68 | I175: 68 | J175: Sekcja | K175: 07:00 - 19:00 | N175: wybierz kasę z listy | O175: 179 | R175: Tarnów | S175: 26 | T175: Tarnów, kasa nr 26 | U175: 50 1140 1010 4167 0000 0052 3026
C176: =_xlfn.IFNA(VLOOKUP(ROWS($C$5:$C176),D176:E403,2,FALSE),"") -> Warszawa, kasa nr 28 | D176: =IF(ISNUMBER(SEARCH($D$3,E176)),MAX($D$4:$D175)+1,0) -> 171 | E176: Warszawa Zachodnia, kasa nr 69 | F176: 73 1140 1010 4167 0000 0051 1069 | G176: Warszawa Zachodnia | H176: K-69 | I176: 69 | J176: Sekcja | K176: 07:00 - 19:00 | N176: wybierz kasę z listy | O176: 180 | R176: Tczew | S176: 3 | T176: Tczew, kasa nr 03 | U176: 59 1140 1010 4167 0000 0054 1003
C177: =_xlfn.IFNA(VLOOKUP(ROWS($C$5:$C177),D177:E404,2,FALSE),"") -> Włocławek, kasa nr 09 | D177: =IF(ISNUMBER(SEARCH($D$3,E177)),MAX($D$4:$D176)+1,0) -> 172 | E177: Warszawa, kasa nr 28 | F177: 79 1140 1010 4167 0000 0051 2028 | G177: Warszawa | H177: K-28 | I177: 28 | J177: Sekcja | K177: 07:00 - 19:00 | N177: wybierz kasę z listy | O177: 181 | R177: Tczew | S177: 11 | T177: Tczew, kasa nr 11 | U177: 37 1140 1010 4167 0000 0054 1011
C178: =_xlfn.IFNA(VLOOKUP(ROWS($C$5:$C178),D178:E405,2,FALSE),"") -> Włocławek, kasa nr 12 | D178: =IF(ISNUMBER(SEARCH($D$3,E178)),MAX($D$4:$D177)+1,0) -> 173 | E178: Włocławek, kasa nr 09 | F178: 23 1140 1010 4167 0000 0054 3009 | G178: Włocławek | H178: K-09 | I178: 9 | J178: Sekcja | K178: 07:00 - 19:00 | N178: wybierz kasę z listy | O178: 182 | R178: Terespol - kasa konduktorska | S178: 8 | T178: Terespol - kasa konduktorska, kasa nr 08 | U178: 78 1140 1010 4167 0000 0051 6508
C179: =_xlfn.IFNA(VLOOKUP(ROWS($C$5:$C179),D179:E406,2,FALSE),"") -> Włoszczowa, kasa nr 22 | D179: =IF(ISNUMBER(SEARCH($D$3,E179)),MAX($D$4:$D178)+1,0) -> 174 | E179: Włocławek, kasa nr 12 | F179: 64 1140 1010 4167 0000 0004 3012 | G179: Włocławek | H179: K-12 | I179: 12 | J179: Sekcja | K179: 07:00 - 19:00 | N179: wybierz kasę z listy | O179: 183 | R179: Terespol | S179: 6 | T179: Terespol , kasa nr 06 | U179: 18 1140 1010 4167 0000 0051 7006
C180: =_xlfn.IFNA(VLOOKUP(ROWS($C$5:$C180),D180:E407,2,FALSE),"") -> Wrocław Główny, kasa nr 08 | D180: =IF(ISNUMBER(SEARCH($D$3,E180)),MAX($D$4:$D179)+1,0) -> 175 | E180: Włoszczowa, kasa nr 22 | F180: 17 1140 1010 4167 0000 0004 5022 | G180: Włoszczowa | H180: K-22 | I180: 22 | J180: Sekcja | K180: 07:00 - 19:00 | N180: wybierz kasę z listy | O180: 184 | R180: Terespol | S180: 5 | T180: Terespol, kasa nr 05 | U180: 79 1140 1010 4167 0000 0051 6005
C181: =_xlfn.IFNA(VLOOKUP(ROWS($C$5:$C181),D181:E414,2,FALSE),"") -> Wrocław Główny, kasa nr 09 | D181: =IF(ISNUMBER(SEARCH($D$3,E181)),MAX($D$4:$D180)+1,0) -> 176 | E181: Wrocław Główny, kasa nr 08 | F181: 36 1140 1010 4167 0000 0053 2008 | G181: Wrocław Główny | H181: K-08 | I181: 8 | J181: Sekcja Handlowa w Wrocławiu | K181: 07:00 - 19:00 | N181: wybierz kasę z listy | O181: 191 | R181: Warszawa Grochów - kasa konduktorska | S181: 2 | T181: Warszawa Grochów - kasa konduktorska, kasa nr 02 | U181: 85 1140 1010 4167 0000 0051 2502
C182: =_xlfn.IFNA(VLOOKUP(ROWS($C$5:$C182),D182:E415,2,FALSE),"") -> Wrocław Główny, kasa nr 11 | D182: =IF(ISNUMBER(SEARCH($D$3,E182)),MAX($D$4:$D181)+1,0) -> 177 | E182: Wrocław Główny, kasa nr 09 | F182: 09 1140 1010 4167 0000 0053 2009 | G182: Wrocław Główny | H182: K-09 | I182: 9 | J182: Sekcja Handlowa w Wrocławiu | K182: 07:00 - 19:00 | N182: wybierz kasę z listy | O182: 192 | R182: Warszawa Senacka | S182: 36 | T182: Warszawa Senacka, kasa nr 36 | U182: 91 1140 1010 4167 0000 0051 1036
C183: =_xlfn.IFNA(VLOOKUP(ROWS($C$5:$C183),D183:E416,2,FALSE),"") -> Wrocław Główny, kasa nr 12 | D183: =IF(ISNUMBER(SEARCH($D$3,E183)),MAX($D$4:$D182)+1,0) -> 178 | E183: Wrocław Główny, kasa nr 11 | F183: 52 1140 1010 4167 0000 0053 2011 | G183: Wrocław Główny | H183: K-11 | I183: 11 | J183: Sekcja Handlowa w Wrocławiu | K183: 07:00 - 19:00 | N183: wybierz kasę z listy | O183: 193 | R183: Warszawa Zachodnia | S183: 33 | T183: Warszawa Zachodnia , kasa nr 33 | U183: 75 1140 1010 4167 0000 0051 1033
C184: =_xlfn.IFNA(VLOOKUP(ROWS($C$5:$C184),D184:E417,2,FALSE),"") -> Wrocław Główny, kasa nr 13 | D184: =IF(ISNUMBER(SEARCH($D$3,E184)),MAX($D$4:$D183)+1,0) -> 179 | E184: Wrocław Główny, kasa nr 12 | F184: 25 1140 1010 4167 0000 0053 2012 | G184: Wrocław Główny | H184: K-12 | I184: 12 | J184: Sekcja Handlowa w Wrocławiu | K184: 07:00 - 19:00 | N184: wybierz kasę z listy | O184: 194 | R184: Warszawa Zachodnia COK West Station | S184: 35 | T184: Warszawa Zachodnia COK West Station, kasa nr 35 | U184: 74 1140 1010 4167 0000 0051 8035
C185: =_xlfn.IFNA(VLOOKUP(ROWS($C$5:$C185),D185:E418,2,FALSE),"") -> Wrocław Główny, kasa nr 14 | D185: =IF(ISNUMBER(SEARCH($D$3,E185)),MAX($D$4:$D184)+1,0) -> 180 | E185: Wrocław Główny, kasa nr 13 | F185: 95 1140 1010 4167 0000 0053 2013 | G185: Wrocław Główny | H185: =IF(VALUE(I185)<10,"K-"&"0"&I185,"K-"&I185) -> K-13 | I185: 13 | J185: Sekcja Handlowa w Wrocławiu | K185: 07:00 - 19:00 | N185: wybierz kasę z listy | O185: 195 | R185: Warszawa Zachodnia COK West Station | S185: 38 | T185: Warszawa Zachodnia COK West Station, kasa nr 38 | U185: 90 1140 1010 4167 0000 0051 8038
C186: =_xlfn.IFNA(VLOOKUP(ROWS($C$5:$C186),D186:E419,2,FALSE),"") -> Wrocław Główny, kasa nr 15 | D186: =IF(ISNUMBER(SEARCH($D$3,E186)),MAX($D$4:$D185)+1,0) -> 181 | E186: Wrocław Główny, kasa nr 14 | F186: 68 1140 1010 4167 0000 0053 2014 | G186: Wrocław Główny | H186: K-14 | I186: 14 | J186: Sekcja Handlowa w Wrocławiu | K186: 07:00 - 19:00 | N186: wybierz kasę z listy | O186: 196 | R186: Warszawa Zachodnia | S186: 24 | T186: Warszawa Zachodnia, kasa nr 24 | U186: 27 1140 1010 4167 0000 0051 1024
C187: =_xlfn.IFNA(VLOOKUP(ROWS($C$5:$C187),D187:E420,2,FALSE),"") -> Wrocław Główny, kasa nr 16 | D187: =IF(ISNUMBER(SEARCH($D$3,E187)),MAX($D$4:$D186)+1,0) -> 182 | E187: Wrocław Główny, kasa nr 15 | F187: 41 1140 1010 4167 0000 0053 2015 | G187: Wrocław Główny | H187: K-15 | I187: 15 | J187: Sekcja Handlowa w Wrocławiu | K187: 07:00 - 19:00 | N187: wybierz kasę z listy | O187: 197 | R187: Warszawa Zachodnia | S187: 31 | T187: Warszawa Zachodnia, kasa nr 31 | U187: 32 1140 1010 4167 0000 0051 1031
C188: =_xlfn.IFNA(VLOOKUP(ROWS($C$5:$C188),D188:E421,2,FALSE),"") -> Wrocław Główny, kasa nr 19 | D188: =IF(ISNUMBER(SEARCH($D$3,E188)),MAX($D$4:$D187)+1,0) -> 183 | E188: Wrocław Główny, kasa nr 16 | F188: 14 1140 1010 4167 0000 0053 2016 | G188: Wrocław Główny | H188: K-16 | I188: 16 | J188: Sekcja Handlowa w Wrocławiu | K188: 07:00 - 19:00 | N188: wybierz kasę z listy | O188: 198 | R188: Warszawa zachodnia | S188: 32 | T188: Warszawa zachodnia, kasa nr 32 | U188: 05 1140 1010 4167 0000 0051 1032
C189: =_xlfn.IFNA(VLOOKUP(ROWS($C$5:$C189),D189:E422,2,FALSE),"") -> Wrocław Główny, kasa nr 20 | D189: =IF(ISNUMBER(SEARCH($D$3,E189)),MAX($D$4:$D188)+1,0) -> 184 | E189: Wrocław Główny, kasa nr 19 | F189: 30 1140 1010 4167 0000 0053 2019 | G189: Wrocław Główny | H189: K-19 | I189: 19 | J189: Sekcja Handlowa w Wrocławiu | K189: 07:00 - 19:00 | N189: wybierz kasę z listy | O189: 199 | R189: Warszawa Zachodnia | S189: 68 | T189: Warszawa Zachodnia, kasa nr 68 | U189: 03 1140 1010 4167 0000 0051 1068
C190: =_xlfn.IFNA(VLOOKUP(ROWS($C$5:$C190),D190:E423,2,FALSE),"") -> Wrocław Mikołajów, kasa nr 18 | D190: =IF(ISNUMBER(SEARCH($D$3,E190)),MAX($D$4:$D189)+1,0) -> 185 | E190: Wrocław Główny, kasa nr 20 | F190: 03 1140 1010 4167 0000 0053 2020 | G190: Wrocław Główny | H190: K-20 | I190: 20 | J190: Sekcja Handlowa w Wrocławiu | K190: 07:00 - 19:00 | N190: wybierz kasę z listy | O190: 200 | R190: Warszawa Zachodnia | S190: 69 | T190: Warszawa Zachodnia, kasa nr 69 | U190: 73 1140 1010 4167 0000 0051 1069
C191: =_xlfn.IFNA(VLOOKUP(ROWS($C$5:$C191),D191:E424,2,FALSE),"") -> W-wa Szczęśliwicka, kasa nr 35 | D191: =IF(ISNUMBER(SEARCH($D$3,E191)),MAX($D$4:$D190)+1,0) -> 186 | E191: Wrocław Mikołajów, kasa nr 18 | F191: 57 1140 1010 4167 0000 0053 2018 | G191: Wrocław Mikołajów | H191: K-18 | I191: 18 | J191: Sekcja Handlowa w Wrocławiu | K191: 07:00 - 19:00 | N191: wybierz kasę z listy | O191: 201 | R191: Warszawa | S191: 28 | T191: Warszawa, kasa nr 28 | U191: 79 1140 1010 4167 0000 0051 2028
C192: =_xlfn.IFNA(VLOOKUP(ROWS($C$5:$C192),D192:E425,2,FALSE),"") -> Zabrze, kasa nr 11 | D192: =IF(ISNUMBER(SEARCH($D$3,E192)),MAX($D$4:$D191)+1,0) -> 187 | E192: W-wa Szczęśliwicka, kasa nr 35 | F192: 21 1140 1010 4167 0000 0051 1035 | G192: W-wa Szczęśliwicka | H192: K-35 | I192: 35 | J192: Sekcja | K192: 07:00 - 19:00 | N192: wybierz kasę z listy | O192: 202 | R192: Włocławek | S192: 9 | T192: Włocławek, kasa nr 09 | U192: 23 1140 1010 4167 0000 0054 3009
C193: =_xlfn.IFNA(VLOOKUP(ROWS($C$5:$C193),D193:E426,2,FALSE),"") -> Zabrze, kasa nr 45 | D193: =IF(ISNUMBER(SEARCH($D$3,E193)),MAX($D$4:$D192)+1,0) -> 188 | E193: Zabrze, kasa nr 11 | F193: 04 1140 1010 4167 0000 0052 2011 | G193: Zabrze | H193: K-11 | I193: 11 | J193: Sekcja Handlowa w Katowicach | K193: 12:40 - 20:40 | L193: olga.glab@intercity.pl;anna.jablonska@intercity.pl;zdzislawa.rosochacka@intercity.pl; | N193: 251 | O193: 203 | R193: Włocławek | S193: 12 | T193: Włocławek, kasa nr 12 | U193: 64 1140 1010 4167 0000 0004 3012
C194: =_xlfn.IFNA(VLOOKUP(ROWS($C$5:$C194),D194:E427,2,FALSE),"") -> Zakopane, kasa nr 24 | D194: =IF(ISNUMBER(SEARCH($D$3,E194)),MAX($D$4:$D193)+1,0) -> 189 | E194: Zabrze, kasa nr 45 | F194: 56 1140 1010 4167 0000 0052 2045 | G194: Zabrze | H194: K-45 | I194: 45 | J194: Sekcja Handlowa w Katowicach | K194: 05:00 - 17:00 | L194: olga.glab@intercity.pl;anna.jablonska@intercity.pl;zdzislawa.rosochacka@intercity.pl; | N194: 252 | O194: 204 | R194: Włoszczowa | S194: 22 | T194: Włoszczowa, kasa nr 22 | U194: 17 1140 1010 4167 0000 0004 5022
C195: =_xlfn.IFNA(VLOOKUP(ROWS($C$5:$C195),D195:E428,2,FALSE),"") -> Zakopane, kasa nr 25 | D195: =IF(ISNUMBER(SEARCH($D$3,E195)),MAX($D$4:$D194)+1,0) -> 190 | E195: Zakopane, kasa nr 24 | F195: 75 1140 1010 4167 0000 0052 1024 | G195: Zakopane | H195: K-24 | I195: 24 | J195: Sekcja Handlowa w Krakowie | K195: 07:00 - 19:00 | N195: wybierz kasę z listy | O195: 205 | R195: Wrocław Główny - Centrum Obsługi Klienta | S195: 10 | T195: Wrocław Główny - Centrum Obsługi Klienta, kasa nr 10 | U195: 79 1140 1010 4167 0000 0053 2010
C196: =_xlfn.IFNA(VLOOKUP(ROWS($C$5:$C196),D196:E429,2,FALSE),"") -> Zawiercie, kasa nr 07 | D196: =IF(ISNUMBER(SEARCH($D$3,E196)),MAX($D$4:$D195)+1,0) -> 191 | E196: Zakopane, kasa nr 25 | F196: 48 1140 1010 4167 0000 0052 1025 | G196: Zakopane | H196: K-25 | I196: 25 | J196: Sekcja Handlowa w Krakowie | K196: 07:00 - 19:00 | N196: wybierz kasę z listy | O196: 206 | R196: Wrocław Główny - Centrum Obsługi Klienta | S196: 31 | T196: Wrocław Główny - Centrum Obsługi Klienta, kasa nr 31 | U196: 94 1140 1010 4167 0000 0053 2031
C197: =_xlfn.IFNA(VLOOKUP(ROWS($C$5:$C197),D197:E430,2,FALSE),"") -> Zawiercie, kasa nr 48 | D197: =IF(ISNUMBER(SEARCH($D$3,E197)),MAX($D$4:$D196)+1,0) -> 192 | E197: Zawiercie, kasa nr 07 | F197: 15 1140 1010 4167 0000 0052 2007 | G197: Zawiercie | H197: K-07 | I197: 7 | J197: Sekcja Handlowa w Katowicach | K197: 06:30 - 18:30 | L197: olga.glab@intercity.pl;anna.jablonska@intercity.pl;zdzislawa.rosochacka@intercity.pl; | N197: 255 | O197: 207 | R197: Wrocław Główny - Centrum Obsługi Klienta | S197: 32 | T197: Wrocław Główny - Centrum Obsługi Klienta, kasa nr 32 | U197: 67 1140 1010 4167 0000 0053 2032
C198: =_xlfn.IFNA(VLOOKUP(ROWS($C$5:$C198),D198:E431,2,FALSE),"") -> Zbąszynek, kasa nr 15 | D198: =IF(ISNUMBER(SEARCH($D$3,E198)),MAX($D$4:$D197)+1,0) -> 193 | E198: Zawiercie, kasa nr 48 | F198: 72 1140 1010 4167 0000 0052 2048 | G198: Zawiercie | H198: K-48 | I198: 48 | J198: Sekcja Handlowa w Katowicach | K198: 07:00 - 19:00 | L198: olga.glab@intercity.pl;anna.jablonska@intercity.pl;zdzislawa.rosochacka@intercity.pl; | N198: 256 | O198: 208 | R198: Wrocław Główny - Centrum Obsługi Klienta | S198: 33 | T198: Wrocław Główny - Centrum Obsługi Klienta, kasa nr 33 | U198: 40 1140 1010 4167 0000 0053 2033
C199: =_xlfn.IFNA(VLOOKUP(ROWS($C$5:$C199),D199:E432,2,FALSE),"") -> Zebrzydowice, kasa nr 38 | D199: =IF(ISNUMBER(SEARCH($D$3,E199)),MAX($D$4:$D198)+1,0) -> 194 | E199: Zbąszynek, kasa nr 15 | F199: 75 1140 1010 4167 0000 0053 1015 | G199: Zbąszynek | H199: K-15 | I199: 15 | J199: Sekcja | K199: 07:00 - 19:00 | N199: wybierz kasę z listy | O199: 209 | R199: Wrocław Główny - Centrum Obsługi Klienta | S199: 34 | T199: Wrocław Główny - Centrum Obsługi Klienta, kasa nr 34 | U199: 13 1140 1010 4167 0000 0053 2034
C200: =_xlfn.IFNA(VLOOKUP(ROWS($C$5:$C200),D200:E433,2,FALSE),"") -> Zielona Góra, kasa nr 13 | D200: =IF(ISNUMBER(SEARCH($D$3,E200)),MAX($D$4:$D199)+1,0) -> 195 | E200: Zebrzydowice, kasa nr 38 | F200: 51 1140 1010 4167 0000 0052 2038 | G200: Zebrzydowice | H200: K-38 | I200: 38 | J200: Sekcja Handlowa w Katowicach | K200: 07:00 - 19:00 | L200: olga.glab@intercity.pl;anna.jablonska@intercity.pl;zdzislawa.rosochacka@intercity.pl; | N200: wybierz kasę z listy | O200: 210 | R200: Wrocław Główny - Centrum Obsługi Klienta | S200: 35 | T200: Wrocław Główny - Centrum Obsługi Klienta, kasa nr 35 | U200: 83 1140 1010 4167 0000 0053 2035
... 24 more rows
